Workbook

Sheet 1. Cost of Service_parameters
D4: MIST Meters True-up Model
B9: Sheet 1: Parameters and Rates
G11: 2018 | H11: 2019 | I11: 2020 | J11: 2021 | K11: 2022 | L11: 2023 | M11: 2024 | N11: 2025 | O11: 2026
B12: Cost of Capital
C13: Capital Structure
D14: Deemed Short-term Debt Capitalization | G14: 0.04 | H14: 0.04 | I14: 0.04 | J14: 0.04 | K14: 0.04 | L14: 0.04 | M14: 0.04 | N14: 0.04 | O14: 0.04
D15: Deemed Long-term Debt Capitalization | G15: =60%-G14 -> 0.56 | H15: =G15-(H14-G14) -> 0.56 | I15: =H15-(I14-H14) -> 0.56 | J15: 0.56 | K15: 0.56 | L15: 0.56 | M15: 0.56 | N15: =M15-(N14-M14) -> 0.56 | O15: =N15-(O14-N14) -> 0.56
D16: Deemed Equity Capitalization | G16: =100%-G15-G17-G14 -> 0.4 | H16: =100%-H15-H17-H14 -> 0.4 | I16: =100%-I15-I17-I14 -> 0.4 | J16: 0.4 | K16: 0.4 | L16: 0.4 | M16: 0.4 | N16: =100%-N15-N17-N14 -> 0.4 | O16: =100%-O15-O17-O14 -> 0.4
D17: Preferred Shares
C18: Total | G18: =SUM(G14:G17) -> 1 | H18: =SUM(H14:H17) -> 1 | I18: =SUM(I14:I17) -> 1 | J18: 1 | K18: 1 | L18: 1 | M18: 1 | N18: 1 | O18: 1
C20: Cost of Capital Parameters
D21: Deemed Short-term Debt Rate | G21: 0.0165 | H21: 0.0165 | I21: 0.0165 | J21: 0.0165 | K21: 0.0165 | L21: 0.0165 | M21: 0.0165 | N21: 0.0165 | O21: 0.0165
D22: Long-term Debt Rate (actual/embedded/deemed)1 | G22: 0.04914816867 | H22: 0.04914816867 | I22: 0.04914816867 | J22: 0.04914816867 | K22: 0.04914816867 | L22: 0.04914816867 | M22: 0.04914816867 | N22: 0.04914816867 | O22: 0.04914816867
D23: Target Return on Equity (ROE) | G23: 0.0919 | H23: 0.0919 | I23: 0.0919 | J23: 0.0919 | K23: 0.0919 | L23: 0.0919 | M23: 0.0919 | N23: 0.0919 | O23: 0.0919
D24: Return on Preferred Shares
C25: WACC | G25: =SUMPRODUCT(G14:G17,G21:G24) -> 0.06494297446 | H25: =SUMPRODUCT(H14:H17,H21:H24) -> 0.06494297446 | I25: =SUMPRODUCT(I14:I17,I21:I24) -> 0.06494297446 | J25: 0.06494297446 | K25: 0.06494297446 | L25: 0.06494297446 | M25: 0.06494297446 | N25: 0.06494297446 | O25: 0.06494297446
B27: Working Capital Allowance
C28: Working Capital Allowance Rate | G28: 0.075 | H28: 0.075 | I28: 0.075 | J28: 0.075 | K28: 0.075 | L28: 0.075 | M28: 0.075 | N28: 0.075 | O28: 0.075
C29: (% of the sum of Cost of Power + controllable expenses)
B31: Taxes/PILs
C32: Aggregate Corporate Income Tax Rate | G32: 0.265 | H32: 0.265 | I32: 0.265 | J32: 0.265 | K32: 0.265 | L32: 0.265 | M32: 0.265 | N32: 0.265 | O32: 0.265
C33: Capital Tax (until July 1st, 2010) | G33: 0 | H33: 0 | I33: 0 | J33: 0 | K33: 0 | L33: 0 | M33: 0 | N33: 0 | O33: 0
B35: Depreciation Rates | E35: Account
B36: (expressed as expected useful life in years)
D38: Year | E38: 1822 | G38: 20 | H38: 20 | I38: 20 | J38: 20 | K38: 20 | L38: 20 | M38: 20 | N38: 20 | O38: 20
C39: - rate (%) | D39: Rate (%) | G39: =IF(G38=0,0,1/G38) -> 0.05 | H39: =IF(H38=0,0,1/H38) -> 0.05 | I39: =IF(I38=0,0,1/I38) -> 0.05 | J39: 0.05 | K39: 0.05 | L39: 0.05 | M39: 0.05 | N39: 0.05 | O39: 0.05
D41: Year | E41: 1845 | G41: 45 | H41: 45 | I41: 45 | J41: 45 | K41: 45 | L41: 45 | M41: 45 | N41: 45 | O41: 45
C42: - rate (%) | D42: Rate (%) | G42: =IF(G41=0,0,1/G41) -> 0.02222222222 | H42: =IF(H41=0,0,1/H41) -> 0.02222222222 | I42: =IF(I41=0,0,1/I41) -> 0.02222222222 | J42: 0.02222222222 | K42: 0.02222222222 | L42: 0.02222222222 | M42: 0.02222222222 | N42: 0.02222222222 | O42: 0.02222222222
D44: Year | E44: 1930 | G44: 7 | H44: 7 | I44: 7 | J44: 7 | K44: 7 | L44: 7 | M44: 7 | N44: 7 | O44: 7
C45: - rate (%) | D45: Rate (%) | G45: =IF(G44=0,0,1/G44) -> 0.1428571429 | H45: =IF(H44=0,0,1/H44) -> 0.1428571429 | I45: =IF(I44=0,0,1/I44) -> 0.1428571429 | J45: 0.1428571429 | K45: 0.1428571429 | L45: 0.1428571429 | M45: 0.1428571429 | N45: 0.1428571429 | O45: 0.1428571429
D47: Year | E47: 1835 | G47: 40 | H47: 40 | I47: 40 | J47: 40 | K47: 40 | L47: 40 | M47: 40 | N47: 40 | O47: 40
C48: - rate (%) | D48: Rate (%) | G48: =IF(G47=0,0,1/G47) -> 0.025 | H48: =IF(H47=0,0,1/H47) -> 0.025 | I48: =IF(I47=0,0,1/I47) -> 0.025 | J48: 0.025 | K48: 0.025 | L48: 0.025 | M48: 0.025 | N48: 0.025 | O48: 0.025
D50: Year | E50: 1921 | G50: 4 | H50: 4 | I50: 4 | J50: 4 | K50: 4 | L50: 4 | M50: 4 | N50: 4 | O50: 4
C51: - rate (%) | D51: Rate (%) | G51: =IF(G50=0,0,1/G50) -> 0.25 | H51: =IF(H50=0,0,1/H50) -> 0.25 | I51: =IF(I50=0,0,1/I50) -> 0.25 | J51: 0.25 | K51: 0.25 | L51: 0.25 | M51: 0.25 | N51: 0.25 | O51: 0.25
D53: Year | E53: 1935 | G53: 10 | H53: 10 | I53: 10 | J53: 10 | K53: 10 | L53: 10 | M53: 10 | N53: 10 | O53: 10
C54: - rate (%) | D54: Rate (%) | G54: =IF(G53=0,0,1/G53) -> 0.1 | H54: =IF(H53=0,0,1/H53) -> 0.1 | I54: =IF(I53=0,0,1/I53) -> 0.1 | J54: 0.1 | K54: 0.1 | L54: 0.1 | M54: 0.1 | N54: 0.1 | O54: 0.1
D56: Year | E56: 1926 | G56: 3 | H56: 3 | I56: 3 | J56: 3 | K56: 3 | L56: 3 | M56: 3 | N56: 3 | O56: 3
C57: - rate (%) | D57: Rate (%) | G57: =IF(G56=0,0,1/G56) -> 0.3333333333 | H57: =IF(H56=0,0,1/H56) -> 0.3333333333 | I57: =IF(I56=0,0,1/I56) -> 0.3333333333 | J57: 0.3333333333 | K57: 0.3333333333 | L57: 0.3333333333 | M57: 0.3333333333 | N57: 0.3333333333 | O57: 0.3333333333
D59: Year | E59: 1860 | G59: 15 | H59: 15 | I59: 15 | J59: 15 | K59: 15 | L59: 15 | M59: 15 | N59: 15 | O59: 15
C60: - rate (%) | D60: Rate (%) | G60: =IF(G59=0,0,1/G59) -> 0.06666666667 | H60: =IF(H59=0,0,1/H59) -> 0.06666666667 | I60: =IF(I59=0,0,1/I59) -> 0.06666666667 | J60: 0.06666666667 | K60: 0.06666666667 | L60: 0.06666666667 | M60: 0.06666666667 | N60: 0.06666666667 | O60: 0.06666666667
D62: Year | E62: 1924 | G62: 6 | H62: 6 | I62: 6 | J62: 6 | K62: 6 | L62: 6 | M62: 6 | N62: 6 | O62: 6
C63: - rate (%) | D63: Rate (%) | G63: =IF(G62=0,0,1/G62) -> 0.1666666667 | H63: =IF(H62=0,0,1/H62) -> 0.1666666667 | I63: =IF(I62=0,0,1/I62) -> 0.1666666667 | J63: 0.1666666667 | K63: 0.1666666667 | L63: 0.1666666667 | M63: 0.1666666667 | N63: 0.1666666667 | O63: 0.1666666667
D65: Year | E65: 1850 | G65: 30 | H65: 30 | I65: 30 | J65: 30 | K65: 30 | L65: 30 | M65: 30 | N65: 30 | O65: 30
C66: - rate (%) | D66: Rate (%) | G66: =IF(G65=0,0,1/G65) -> 0.03333333333 | H66: =IF(H65=0,0,1/H65) -> 0.03333333333 | I66: =IF(I65=0,0,1/I65) -> 0.03333333333 | J66: 0.03333333333 | K66: 0.03333333333 | L66: 0.03333333333 | M66: 0.03333333333 | N66: 0.03333333333 | O66: 0.03333333333
D68: Year | E68: 1982 | G68: 10 | H68: 10 | I68: 10 | J68: 10 | K68: 10 | L68: 10 | M68: 10 | N68: 10 | O68: 10
C69: - rate (%) | D69: Rate (%) | G69: =IF(G68=0,0,1/G68) -> 0.1 | H69: =IF(H68=0,0,1/H68) -> 0.1 | I69: =IF(I68=0,0,1/I68) -> 0.1 | J69: 0.1 | K69: 0.1 | L69: 0.1 | M69: 0.1 | N69: 0.1 | O69: 0.1
D71: Year | E71: 1955 | G71: 6 | H71: 6 | I71: 6 | J71: 6 | K71: 6 | L71: 6 | M71: 6 | N71: 6 | O71: 6
C72: - rate (%) | D72: Rate (%) | G72: =IF(G71=0,0,1/G71) -> 0.1666666667 | H72: =IF(H71=0,0,1/H71) -> 0.1666666667 | I72: =IF(I71=0,0,1/I71) -> 0.1666666667 | J72: 0.1666666667 | K72: 0.1666666667 | L72: 0.1666666667 | M72: 0.1666666667 | N72: 0.1666666667 | O72: 0.1666666667
B74: CCA Rates
D75: CCA Class | E75: 1822 | G75: 47 | H75: 47 | I75: 47 | J75: 47 | K75: 47 | L75: 47 | M75: 47 | N75: 47 | O75: 47
D76: CCA Rate | G76: 0.08 | H76: 0.08 | I76: 0.08 | J76: 0.08 | K76: 0.08 | L76: 0.08 | M76: 0.08 | N76: 0.08 | O76: 0.08
D78: CCA Class | E78: 1845 | G78: 47 | H78: 47 | I78: 47 | J78: 47 | K78: 47 | L78: 47 | M78: 47 | N78: 47 | O78: 47
D79: CCA Rate | G79: 0.08 | H79: 0.08 | I79: 0.08 | J79: 0.08 | K79: 0.08 | L79: 0.08 | M79: 0.08 | N79: 0.08 | O79: 0.08
D81: CCA Class | E81: 1930 | G81: 10 | H81: 10 | I81: 10 | J81: 10 | K81: 10 | L81: 10 | M81: 10 | N81: 10 | O81: 10
D82: CCA Rate | G82: 0.3 | H82: 0.3 | I82: 0.3 | J82: 0.3 | K82: 0.3 | L82: 0.3 | M82: 0.3 | N82: 0.3 | O82: 0.3
D84: CCA Class | E84: 1835 | G84: 47 | H84: 47 | I84: 47 | J84: 47 | K84: 47 | L84: 47 | M84: 47 | N84: 47 | O84: 47
D85: CCA Rate | G85: 0.08 | H85: 0.08 | I85: 0.08 | J85: 0.08 | K85: 0.08 | L85: 0.08 | M85: 0.08 | N85: 0.08 | O85: 0.08
D87: CCA Class | E87: 1921 | G87: 50 | H87: 50 | I87: 50 | J87: 50 | K87: 50 | L87: 50 | M87: 50 | N87: 50 | O87: 50
D88: CCA Rate | G88: 0.55 | H88: 0.55 | I88: 0.55 | J88: 0.55 | K88: 0.55 | L88: 0.55 | M88: 0.55 | N88: 0.55 | O88: 0.55
D90: CCA Class | E90: 1935 | G90: 8 | H90: 8 | I90: 8 | J90: 8 | K90: 8 | L90: 8 | M90: 8 | N90: 8 | O90: 8
D91: CCA Rate | G91: 0.2 | H91: 0.2 | I91: 0.2 | J91: 0.2 | K91: 0.2 | L91: 0.2 | M91: 0.2 | N91: 0.2 | O91: 0.2
D93: CCA Class | E93: 1926 | G93: 12 | H93: 12 | I93: 12 | J93: 12 | K93: 12 | L93: 12 | M93: 12 | N93: 12 | O93: 12
D94: CCA Rate | G94: 1 | H94: 1 | I94: 1 | J94: 1 | K94: 1 | L94: 1 | M94: 1 | N94: 1 | O94: 1
D96: CCA Class | E96: 1860 | G96: 47 | H96: 47 | I96: 47 | J96: 47 | K96: 47 | L96: 47 | M96: 47 | N96: 47 | O96: 47
D97: CCA Rate | G97: 0.08 | H97: 0.08 | I97: 0.08 | J97: 0.08 | K97: 0.08 | L97: 0.08 | M97: 0.08 | N97: 0.08 | O97: 0.08
D99: CCA Class | E99: 1924 | G99: 50 | H99: 50 | I99: 50 | J99: 50 | K99: 50 | L99: 50 | M99: 50 | N99: 50 | O99: 50
D100: CCA Rate | G100: 0.55 | H100: 0.55 | I100: 0.55 | J100: 0.55 | K100: 0.55 | L100: 0.55 | M100: 0.55 | N100: 0.55 | O100: 0.55
D102: CCA Class | E102: 1850 | G102: 47 | H102: 47 | I102: 47 | J102: 47 | K102: 47 | L102: 47 | M102: 47 | N102: 47 | O102: 47
D103: CCA Rate | G103: 0.08 | H103: 0.08 | I103: 0.08 | J103: 0.08 | K103: 0.08 | L103: 0.08 | M103: 0.08 | N103: 0.08 | O103: 0.08
D105: CCA Class | E105: 1982 | G105: 8 | H105: 8 | I105: 8 | J105: 8 | K105: 8 | L105: 8 | M105: 8 | N105: 8 | O105: 8
D106: CCA Rate | G106: 0.2 | H106: 0.2 | I106: 0.2 | J106: 0.2 | K106: 0.2 | L106: 0.2 | M106: 0.2 | N106: 0.2 | O106: 0.2
D108: CCA Class | E108: 1955 | G108: 8 | H108: 8 | I108: 8 | J108: 8 | K108: 8 | L108: 8 | M108: 8 | N108: 8 | O108: 8
D109: CCA Rate | G109: 0.2 | H109: 0.2 | I109: 0.2 | J109: 0.2 | K109: 0.2 | L109: 0.2 | M109: 0.2 | N109: 0.2 | O109: 0.2
B112: Assumptions
B113: 1 | C113: Fiscal calendar year (January 1 to December 31) used.
B114: 3 | C114: Amortization is done on a striaght line basis and no "half-year" rule applied.

Sheet 2.MIST Meters Assets_Rate Base
D4: MIST Meters True-up Model
B9: Sheet 2: 1577 -Net Book Value
E10: 2018 | F10: 2019 | G10: 2020 | H10: 2021 | I10: 2022 | J10: 2023 | K10: 2024 | L10: 2025 | M10: 2026
B11: Net Fixed Assets - 1822
C13: Gross Book Value
D14: Opening Balance | E14: 0 | F14: =E17 -> 162581.58 | G14: =F17 -> 223612.31 | H14: 272697.88 | I14: 274016.17 | J14: 274016.17 | K14: 380136.14 | L14: 380136.14 | M14: 380136.14
D15: Capital Additions during year | E15: 162581.58 | F15: 61030.73 | G15: 49085.57 | H15: 1318.29 | I15: 0 | J15: 106119.97
D16: Retirements/Removals (if applicable)
D17: Closing Balance | E17: =E14+E15-E16 -> 162581.58 | F17: =F14+F15-F16 -> 223612.31 | G17: =G14+G15-G16 -> 272697.88 | H17: 274016.17 | I17: 274016.17 | J17: 380136.14 | K17: 380136.14 | L17: 380136.14 | M17: 380136.14
C19: Accumulated Depreciation
D20: Opening Balance | E20: 0 | F20: =E23 -> -5419.386 | G20: =F23 -> -16258.158 | H20: -31165.64533 | I20: -49345.504 | J20: -67613.24867 | K20: -85880.99333 | L20: -111223.4027 | M20: -136565.812
D21: Amortization expense during year | E21: =-E15/'1. Cost of Service_parameters'!G59/2 -> -5419.386 | F21: =-F14/'1. Cost of Service_parameters'!H59 -> -10838.772 | G21: =-G14/'1. Cost of Service_parameters'!I59 -> -14907.48733 | H21: =-H14/'1. Cost of Service_parameters'!J59 -> -18179.85867 | I21: =-I14/'1. Cost of Service_parameters'!K59 -> -18267.74467 | J21: =-J14/'1. Cost of Service_parameters'!L59 -> -18267.74467 | K21: =-K14/'1. Cost of Service_parameters'!M59 -> -25342.40933 | L21: =-L14/'1. Cost of Service_parameters'!N59 -> -25342.40933 | M21: =-M14/'1. Cost of Service_parameters'!O59 -> -25342.40933
D22: Retirements/Removals (if applicable)
D23: Closing Balance | E23: =E20+E21-E22 -> -5419.386 | F23: =F20+F21-F22 -> -16258.158 | G23: =G20+G21-G22 -> -31165.64533 | H23: =H20+H21-H22 -> -49345.504 | I23: =I20+I21-I22 -> -67613.24867 | J23: =J20+J21-J22 -> -85880.99333 | K23: =K20+K21-K22 -> -111223.4027 | L23: =L20+L21-L22 -> -136565.812 | M23: =M20+M21-M22 -> -161908.2213
C25: Net Book Value
D26: Opening Balance | E26: =E14+E20 -> 0 | F26: =E27 -> 157162.194 | G26: =F27 -> 207354.152 | H26: 241532.2347 | I26: 224670.666 | J26: 206402.9213 | K26: 294255.1467 | L26: 268912.7373 | M26: 243570.328
D27: Closing Balance | E27: =E17+E23 -> 157162.194 | F27: =F17+F23 -> 207354.152 | G27: =G17+G23 -> 241532.2347 | H27: 224670.666 | I27: 206402.9213 | J27: 294255.1467 | K27: 268912.7373 | L27: 243570.328 | M27: 218227.9187
D28: Net Fixed Assets (NFA) | E28: =SUM(E26:E27)/2 -> 78581.097 | F28: =AVERAGE(F26:F27) -> 182258.173 | G28: =AVERAGE(G26:G27) -> 224443.1933 | H28: 233101.4503 | I28: 215536.7937 | J28: 250329.034 | K28: 281583.942 | L28: 256241.5327 | M28: 230899.1233
B30: Net Fixed Assets - 1845
C32: Gross Book Value
D33: Opening Balance | F33: =E36 -> 0 | G33: =F36 -> 0 | H33: 0 | I33: 0 | J33: 0 | K33: 0 | L33: 0 | M33: 0
D34: Capital Additions during year (from ICM Costs)
D35: Retirements/Removals (if applicable)
D36: Closing Balance | E36: =E33+E34-E35 -> 0 | F36: =F33+F34-F35 -> 0 | G36: =G33+G34-G35 -> 0 | H36: 0 | I36: 0 | J36: 0 | K36: 0 | L36: 0 | M36: 0
C38: Accumulated Depreciation
D39: Opening Balance | F39: =E42 -> 0 | G39: =F42 -> 0 | H39: 0 | I39: 0 | J39: 0 | K39: 0 | L39: 0 | M39: 0
D40: Amortization expense during year | E40: =-E34/'1. Cost of Service_parameters'!G41/2 -> 0 | F40: =-F33/'1. Cost of Service_parameters'!G41-'2.MIST Meters Assets_Rate Base'!F34/'1. Cost of Service_parameters'!G41/2 -> 0 | G40: =-G33/'1. Cost of Service_parameters'!H41-'2.MIST Meters Assets_Rate Base'!G34/'1. Cost of Service_parameters'!H41/2 -> 0 | H40: =-H33/'1. Cost of Service_parameters'!I41-'2.MIST Meters Assets_Rate Base'!H34/'1. Cost of Service_parameters'!I41/2 -> 0 | I40: =-I33/'1. Cost of Service_parameters'!J41-'2.MIST Meters Assets_Rate Base'!I34/'1. Cost of Service_parameters'!J41/2 -> 0 | J40: =-J33/'1. Cost of Service_parameters'!K41-'2.MIST Meters Assets_Rate Base'!J34/'1. Cost of Service_parameters'!K41/2 -> 0 | K40: =-K33/'1. Cost of Service_parameters'!L41-'2.MIST Meters Assets_Rate Base'!K34/'1. Cost of Service_parameters'!L41/2 -> 0 | L40: =-L33/'1. Cost of Service_parameters'!M41-'2.MIST Meters Assets_Rate Base'!L34/'1. Cost of Service_parameters'!M41/2 -> 0 | M40: =-M33/'1. Cost of Service_parameters'!N41-'2.MIST Meters Assets_Rate Base'!M34/'1. Cost of Service_parameters'!N41/2 -> 0
D41: Retirements/Removals (if applicable)
D42: Closing Balance | E42: =E39+E40-E41 -> 0 | F42: =F39+F40-F41 -> 0 | G42: =G39+G40-G41 -> 0 | H42: 0 | I42: 0 | J42: 0 | K42: 0 | L42: 0 | M42: 0
C44: Net Book Value
D45: Opening Balance | E45: =E33+E39 -> 0 | F45: =E46 -> 0 | G45: =F46 -> 0 | H45: 0 | I45: 0 | J45: 0 | K45: 0 | L45: 0 | M45: 0
D46: Closing Balance | E46: =E36+E42 -> 0 | F46: =F36+F42 -> 0 | G46: =G36+G42 -> 0 | H46: 0 | I46: 0 | J46: 0 | K46: 0 | L46: 0 | M46: 0
D47: Net Fixed Assets (NFA) | E47: =AVERAGE(E45:E46) -> 0 | F47: =AVERAGE(F45:F46) -> 0 | G47: =AVERAGE(G45:G46) -> 0 | H47: 0 | I47: 0 | J47: 0 | K47: 0 | L47: 0 | M47: 0
B49: Net Fixed Assets - 1930
C51: Gross Book Value
D52: Opening Balance | F52: =E55 -> 0 | G52: =F55 -> 0 | H52: 0 | I52: 0 | J52: 0 | K52: 0 | L52: 0 | M52: 0
D53: Capital Additions during year (from ICM Costs) | F53: 0
D54: Retirements/Removals (if applicable)
D55: Closing Balance | E55: =E52+E53-E54 -> 0 | F55: =F52+F53-F54 -> 0 | G55: =G52+G53-G54 -> 0 | H55: 0 | I55: 0 | J55: 0 | K55: 0 | L55: 0 | M55: 0
C57: Accumulated Depreciation
D58: Opening Balance | F58: =E61 -> 0 | G58: =F61 -> 0 | H58: 0 | I58: 0 | J58: 0 | K58: 0 | L58: 0 | M58: 0
D59: Amortization expense during year | E59: =-E53/'1. Cost of Service_parameters'!G44/2 -> 0 | F59: =-F52/'1. Cost of Service_parameters'!G44 -> 0 | G59: =-G52/'1. Cost of Service_parameters'!H44 -> 0 | H59: =-H52/'1. Cost of Service_parameters'!I44 -> 0 | I59: =-I52/'1. Cost of Service_parameters'!J44 -> 0 | J59: =-J52/'1. Cost of Service_parameters'!K44 -> 0 | K59: =-K52/'1. Cost of Service_parameters'!L44 -> 0 | L59: =-L52/'1. Cost of Service_parameters'!M44 -> 0 | M59: =-M52/'1. Cost of Service_parameters'!N44 -> 0
D60: Retirements/Removals (if applicable)
D61: Closing Balance | E61: =E58+E59-E60 -> 0 | F61: =F58+F59-F60 -> 0 | G61: =G58+G59-G60 -> 0 | H61: 0 | I61: 0 | J61: 0 | K61: 0 | L61: 0 | M61: 0
C63: Net Book Value
D64: Opening Balance | E64: =E52+E58 -> 0 | F64: =E65 -> 0 | G64: =F65 -> 0 | H64: 0 | I64: 0 | J64: 0 | K64: 0 | L64: 0 | M64: 0
D65: Closing Balance | E65: =E55+E61 -> 0 | F65: =F55+F61 -> 0 | G65: =G55+G61 -> 0 | H65: 0 | I65: 0 | J65: 0 | K65: 0 | L65: 0 | M65: 0
D66: Net Fixed Assets (NFA) | E66: =AVERAGE(E64:E65) -> 0 | F66: =AVERAGE(F64:F65) -> 0 | G66: =AVERAGE(G64:G65) -> 0 | H66: 0 | I66: 0 | J66: 0 | K66: 0 | L66: 0 | M66: 0
B68: Net Fixed Assets - 1835
C70: Gross Book Value
D71: Opening Balance | F71: =E74 -> 0 | G71: =F74 -> 0 | H71: 0 | I71: 0 | J71: 0 | K71: 0 | L71: 0 | M71: 0
D72: Capital Additions during year (from ICM Costs)
D73: Retirements/Removals (if applicable)
D74: Closing Balance | E74: =E71+E72-E73 -> 0 | F74: =F71+F72-F73 -> 0 | G74: =G71+G72-G73 -> 0 | H74: 0 | I74: 0 | J74: 0 | K74: 0 | L74: 0 | M74: 0
C76: Accumulated Depreciation
D77: Opening Balance | F77: =E80 -> 0 | G77: =F80 -> 0 | H77: 0 | I77: 0 | J77: 0 | K77: 0 | L77: 0 | M77: 0
D78: Amortization expense during year | E78: =-E72/'1. Cost of Service_parameters'!G47/2 -> 0 | F78: =-F71/'1. Cost of Service_parameters'!G47-'2.MIST Meters Assets_Rate Base'!F72/'1. Cost of Service_parameters'!G47/2 -> 0 | G78: =-G71/'1. Cost of Service_parameters'!H47-'2.MIST Meters Assets_Rate Base'!G72/'1. Cost of Service_parameters'!H47/2 -> 0 | H78: =-H71/'1. Cost of Service_parameters'!I47-'2.MIST Meters Assets_Rate Base'!H72/'1. Cost of Service_parameters'!I47/2 -> 0 | I78: =-I71/'1. Cost of Service_parameters'!J47-'2.MIST Meters Assets_Rate Base'!I72/'1. Cost of Service_parameters'!J47/2 -> 0 | J78: =-J71/'1. Cost of Service_parameters'!K47-'2.MIST Meters Assets_Rate Base'!J72/'1. Cost of Service_parameters'!K47/2 -> 0 | K78: =-K71/'1. Cost of Service_parameters'!L47-'2.MIST Meters Assets_Rate Base'!K72/'1. Cost of Service_parameters'!L47/2 -> 0 | L78: =-L71/'1. Cost of Service_parameters'!M47-'2.MIST Meters Assets_Rate Base'!L72/'1. Cost of Service_parameters'!M47/2 -> 0 | M78: =-M71/'1. Cost of Service_parameters'!N47-'2.MIST Meters Assets_Rate Base'!M72/'1. Cost of Service_parameters'!N47/2 -> 0
D79: Retirements/Removals (if applicable)
D80: Closing Balance | E80: =E77+E78-E79 -> 0 | F80: =F77+F78-F79 -> 0 | G80: =G77+G78-G79 -> 0 | H80: 0 | I80: 0 | J80: 0 | K80: 0 | L80: 0 | M80: 0
C82: Net Book Value
D83: Opening Balance | E83: =E71+E77 -> 0 | F83: =E84 -> 0 | G83: =F84 -> 0 | H83: 0 | I83: 0 | J83: 0 | K83: 0 | L83: 0 | M83: 0
D84: Closing Balance | E84: =E74+E80 -> 0 | F84: =F74+F80 -> 0 | G84: =G74+G80 -> 0 | H84: 0 | I84: 0 | J84: 0 | K84: 0 | L84: 0 | M84: 0
D85: Net Fixed Assets (NFA) | E85: =AVERAGE(E83:E84) -> 0 | F85: =AVERAGE(F83:F84) -> 0 | G85: =AVERAGE(G83:G84) -> 0 | H85: 0 | I85: 0 | J85: 0 | K85: 0 | L85: 0 | M85: 0
B87: Net Fixed Assets - 1921
C89: Gross Book Value
D90: Opening Balance | F90: =E93 -> 0 | G90: =F93 -> 0 | H90: 0 | I90: 0 | J90: 0 | K90: 0 | L90: 0 | M90: 0
D91: Capital Additions during year (from ICM Costs) | F91: 0
D92: Retirements/Removals (if applicable)
D93: Closing Balance | E93: =E90+E91-E92 -> 0 | F93: =F90+F91-F92 -> 0 | G93: =G90+G91-G92 -> 0 | H93: 0 | I93: 0 | J93: 0 | K93: 0 | L93: 0 | M93: 0
C95: Accumulated Depreciation
D96: Opening Balance | F96: =E99 -> 0 | G96: =F99 -> 0 | H96: 0 | I96: 0 | J96: 0 | K96: 0 | L96: 0 | M96: 0
D97: Amortization expense during year | E97: =-E91/'1. Cost of Service_parameters'!G50/2 -> 0 | F97: =-F90/'1. Cost of Service_parameters'!G50 -> 0 | G97: =-G90/'1. Cost of Service_parameters'!H50 -> 0 | H97: =-H90/'1. Cost of Service_parameters'!I50 -> 0 | I97: =-I90/'1. Cost of Service_parameters'!J50 -> 0 | J97: =-J90/'1. Cost of Service_parameters'!K50 -> 0 | K97: =-K90/'1. Cost of Service_parameters'!L50 -> 0 | L97: =-L90/'1. Cost of Service_parameters'!M50 -> 0 | M97: =-M90/'1. Cost of Service_parameters'!N50 -> 0
D98: Retirements/Removals (if applicable)
D99: Closing Balance | E99: =E96+E97-E98 -> 0 | F99: =F96+F97-F98 -> 0 | G99: =G96+G97-G98 -> 0 | H99: 0 | I99: 0 | J99: 0 | K99: 0 | L99: 0 | M99: 0
C101: Net Book Value
D102: Opening Balance | E102: =E90+E96 -> 0 | F102: =E103 -> 0 | G102: =F103 -> 0 | H102: 0 | I102: 0 | J102: 0 | K102: 0 | L102: 0 | M102: 0
D103: Closing Balance | E103: =E93+E99 -> 0 | F103: =F93+F99 -> 0 | G103: =G93+G99 -> 0 | H103: 0 | I103: 0 | J103: 0 | K103: 0 | L103: 0 | M103: 0
D104: Net Fixed Assets (NFA) | E104: =AVERAGE(E102:E103) -> 0 | F104: =AVERAGE(F102:F103) -> 0 | G104: =AVERAGE(G102:G103) -> 0 | H104: 0 | I104: 0 | J104: 0 | K104: 0 | L104: 0 | M104: 0
B106: Net Fixed Assets - 1935
C108: Gross Book Value
D109: Opening Balance | F109: =E112 -> 0 | G109: =F112 -> 0 | H109: 0 | I109: 0 | J109: 0 | K109: 0 | L109: 0 | M109: 0
D110: Capital Additions during year (from ICM Costs)
D111: Retirements/Removals (if applicable)
D112: Closing Balance | E112: =E109+E110-E111 -> 0 | F112: =F109+F110-F111 -> 0 | G112: =G109+G110-G111 -> 0 | H112: 0 | I112: 0 | J112: 0 | K112: 0 | L112: 0 | M112: 0
C114: Accumulated Depreciation
D115: Opening Balance | F115: =E118 -> 0 | G115: =F118 -> 0 | H115: 0 | I115: 0 | J115: 0 | K115: 0 | L115: 0 | M115: 0
D116: Amortization expense during year | E116: =-E110/'1. Cost of Service_parameters'!G53/2 -> 0 | F116: =-F109/'1. Cost of Service_parameters'!G53-'2.MIST Meters Assets_Rate Base'!F110/'1. Cost of Service_parameters'!G53/2 -> 0 | G116: =-G109/'1. Cost of Service_parameters'!H53-'2.MIST Meters Assets_Rate Base'!G110/'1. Cost of Service_parameters'!H53/2 -> 0 | H116: =-H109/'1. Cost of Service_parameters'!I53-'2.MIST Meters Assets_Rate Base'!H110/'1. Cost of Service_parameters'!I53/2 -> 0 | I116: =-I109/'1. Cost of Service_parameters'!J53-'2.MIST Meters Assets_Rate Base'!I110/'1. Cost of Service_parameters'!J53/2 -> 0 | J116: =-J109/'1. Cost of Service_parameters'!K53-'2.MIST Meters Assets_Rate Base'!J110/'1. Cost of Service_parameters'!K53/2 -> 0 | K116: =-K109/'1. Cost of Service_parameters'!L53-'2.MIST Meters Assets_Rate Base'!K110/'1. Cost of Service_parameters'!L53/2 -> 0 | L116: =-L109/'1. Cost of Service_parameters'!M53-'2.MIST Meters Assets_Rate Base'!L110/'1. Cost of Service_parameters'!M53/2 -> 0 | M116: =-M109/'1. Cost of Service_parameters'!N53-'2.MIST Meters Assets_Rate Base'!M110/'1. Cost of Service_parameters'!N53/2 -> 0
D117: Retirements/Removals (if applicable)
D118: Closing Balance | E118: =E115+E116-E117 -> 0 | F118: =F115+F116-F117 -> 0 | G118: =G115+G116-G117 -> 0 | H118: 0 | I118: 0 | J118: 0 | K118: 0 | L118: 0 | M118: 0
C120: Net Book Value
D121: Opening Balance | E121: =E109+E115 -> 0 | F121: =E122 -> 0 | G121: =F122 -> 0 | H121: 0 | I121: 0 | J121: 0 | K121: 0 | L121: 0 | M121: 0
D122: Closing Balance | E122: =E112+E118 -> 0 | F122: =F112+F118 -> 0 | G122: =G112+G118 -> 0 | H122: 0 | I122: 0 | J122: 0 | K122: 0 | L122: 0 | M122: 0
D123: Net Fixed Assets (NFA) | E123: =AVERAGE(E121:E122) -> 0 | F123: =AVERAGE(F121:F122) -> 0 | G123: =AVERAGE(G121:G122) -> 0 | H123: 0 | I123: 0 | J123: 0 | K123: 0 | L123: 0 | M123: 0
B125: Net Fixed Assets - 1926
C127: Gross Book Value
D128: Opening Balance | F128: =E131 -> 0 | G128: =F131 -> 0 | H128: 0 | I128: 0 | J128: 0 | K128: 0 | L128: 0 | M128: 0
D129: Capital Additions during year (from ICM Costs) | F129: 0
D130: Retirements/Removals (if applicable)
D131: Closing Balance | E131: =E128+E129-E130 -> 0 | F131: =F128+F129-F130 -> 0 | G131: =G128+G129-G130 -> 0 | H131: 0 | I131: 0 | J131: 0 | K131: 0 | L131: 0 | M131: 0
C133: Accumulated Depreciation
D134: Opening Balance | F134: =E137 -> 0 | G134: =F137 -> 0 | H134: 0 | I134: 0 | J134: 0 | K134: 0 | L134: 0 | M134: 0
D135: Amortization expense during year | E135: =-E129/'1. Cost of Service_parameters'!G56/2 -> 0 | F135: =-F128/'1. Cost of Service_parameters'!G56 -> 0 | G135: =-G128/'1. Cost of Service_parameters'!H56 -> 0 | H135: =-H128/'1. Cost of Service_parameters'!I56 -> 0 | I135: =-I128/'1. Cost of Service_parameters'!J56 -> 0 | J135: =-J128/'1. Cost of Service_parameters'!K56 -> 0 | K135: =-K128/'1. Cost of Service_parameters'!L56 -> 0 | L135: =-L128/'1. Cost of Service_parameters'!M56 -> 0 | M135: =-M128/'1. Cost of Service_parameters'!N56 -> 0
D136: Retirements/Removals (if applicable)
D137: Closing Balance | E137: =E134+E135-E136 -> 0 | F137: =F134+F135-F136 -> 0 | G137: =G134+G135-G136 -> 0 | H137: 0 | I137: 0 | J137: 0 | K137: 0 | L137: 0 | M137: 0
C139: Net Book Value
D140: Opening Balance | E140: =E128+E134 -> 0 | F140: =E141 -> 0 | G140: =F141 -> 0 | H140: 0 | I140: 0 | J140: 0 | K140: 0 | L140: 0 | M140: 0
D141: Closing Balance | E141: =E131+E137 -> 0 | F141: =F131+F137 -> 0 | G141: =G131+G137 -> 0 | H141: 0 | I141: 0 | J141: 0 | K141: 0 | L141: 0 | M141: 0
D142: Net Fixed Assets (NFA) | E142: =AVERAGE(E140:E141) -> 0 | F142: =AVERAGE(F140:F141) -> 0 | G142: =AVERAGE(G140:G141) -> 0 | H142: 0 | I142: 0 | J142: 0 | K142: 0 | L142: 0 | M142: 0
B144: Net Fixed Assets - 1862
C146: Gross Book Value
D147: Opening Balance | F147: =E150 -> 0 | G147: =F150 -> 0 | H147: 0 | I147: 0 | J147: 0 | K147: 0 | L147: 0 | M147: 0
D148: Capital Additions during year (from ICM Costs) | F148: 0
D149: Retirements/Removals (if applicable)
D150: Closing Balance | E150: =E147+E148-E149 -> 0 | F150: =F147+F148-F149 -> 0 | G150: =G147+G148-G149 -> 0 | H150: 0 | I150: 0 | J150: 0 | K150: 0 | L150: 0 | M150: 0
C152: Accumulated Depreciation
D153: Opening Balance | F153: =E156 -> 0 | G153: =F156 -> 0 | H153: 0 | I153: 0 | J153: 0 | K153: 0 | L153: 0 | M153: 0
D154: Amortization expense during year | E154: =-E148/'1. Cost of Service_parameters'!G59/2 -> 0 | F154: =-F147/'1. Cost of Service_parameters'!G59 -> 0 | G154: =-G147/'1. Cost of Service_parameters'!H59 -> 0 | H154: =-H147/'1. Cost of Service_parameters'!I59 -> 0 | I154: =-I147/'1. Cost of Service_parameters'!J59 -> 0 | J154: =-J147/'1. Cost of Service_parameters'!K59 -> 0 | K154: =-K147/'1. Cost of Service_parameters'!L59 -> 0 | L154: =-L147/'1. Cost of Service_parameters'!M59 -> 0 | M154: =-M147/'1. Cost of Service_parameters'!N59 -> 0
D155: Retirements/Removals (if applicable)
D156: Closing Balance | E156: =E153+E154-E155 -> 0 | F156: =F153+F154-F155 -> 0 | G156: =G153+G154-G155 -> 0 | H156: 0 | I156: 0 | J156: 0 | K156: 0 | L156: 0 | M156: 0
C158: Net Book Value
D159: Opening Balance | E159: =E147+E153 -> 0 | F159: =E160 -> 0 | G159: =F160 -> 0 | H159: 0 | I159: 0 | J159: 0 | K159: 0 | L159: 0 | M159: 0
D160: Closing Balance | E160: =E150+E156 -> 0 | F160: =F150+F156 -> 0 | G160: =G150+G156 -> 0 | H160: 0 | I160: 0 | J160: 0 | K160: 0 | L160: 0 | M160: 0
D161: Net Fixed Assets (NFA) | E161: =AVERAGE(E159:E160) -> 0 | F161: =AVERAGE(F159:F160) -> 0 | G161: =AVERAGE(G159:G160) -> 0 | H161: 0 | I161: 0 | J161: 0 | K161: 0 | L161: 0 | M161: 0
B163: Net Fixed Assets - 1924
C165: Gross Book Value
D166: Opening Balance | F166: =E169 -> 0 | G166: =F169 -> 0 | H166: 0 | I166: 0 | J166: 0 | K166: 0 | L166: 0 | M166: 0
D167: Capital Additions during year (from ICM Costs)
D168: Retirements/Removals (if applicable)
D169: Closing Balance | E169: =E166+E167-E168 -> 0 | F169: =F166+F167-F168 -> 0 | G169: =G166+G167-G168 -> 0 | H169: 0 | I169: 0 | J169: 0 | K169: 0 | L169: 0 | M169: 0
C171: Accumulated Depreciation
D172: Opening Balance | F172: =E175 -> 0 | G172: =F175 -> 0 | H172: 0 | I172: 0 | J172: 0 | K172: 0 | L172: 0 | M172: 0
D173: Amortization expense during year | E173: =-E167/'1. Cost of Service_parameters'!G62/2 -> 0 | F173: =-F166/'1. Cost of Service_parameters'!G62-'2.MIST Meters Assets_Rate Base'!F167/'1. Cost of Service_parameters'!G62/2 -> 0 | G173: =-G166/'1. Cost of Service_parameters'!H62-'2.MIST Meters Assets_Rate Base'!G167/'1. Cost of Service_parameters'!H62/2 -> 0 | H173: =-H166/'1. Cost of Service_parameters'!I62-'2.MIST Meters Assets_Rate Base'!H167/'1. Cost of Service_parameters'!I62/2 -> 0 | I173: =-I166/'1. Cost of Service_parameters'!J62-'2.MIST Meters Assets_Rate Base'!I167/'1. Cost of Service_parameters'!J62/2 -> 0 | J173: =-J166/'1. Cost of Service_parameters'!K62-'2.MIST Meters Assets_Rate Base'!J167/'1. Cost of Service_parameters'!K62/2 -> 0 | K173: =-K166/'1. Cost of Service_parameters'!L62-'2.MIST Meters Assets_Rate Base'!K167/'1. Cost of Service_parameters'!L62/2 -> 0 | L173: =-L166/'1. Cost of Service_parameters'!M62-'2.MIST Meters Assets_Rate Base'!L167/'1. Cost of Service_parameters'!M62/2 -> 0 | M173: =-M166/'1. Cost of Service_parameters'!N62-'2.MIST Meters Assets_Rate Base'!M167/'1. Cost of Service_parameters'!N62/2 -> 0
D174: Retirements/Removals (if applicable)
D175: Closing Balance | E175: =E172+E173-E174 -> 0 | F175: =F172+F173-F174 -> 0 | G175: =G172+G173-G174 -> 0 | H175: 0 | I175: 0 | J175: 0 | K175: 0 | L175: 0 | M175: 0
C177: Net Book Value
D178: Opening Balance | E178: =E166+E172 -> 0 | F178: =E179 -> 0 | G178: =F179 -> 0 | H178: 0 | I178: 0 | J178: 0 | K178: 0 | L178: 0 | M178: 0
D179: Closing Balance | E179: =E169+E175 -> 0 | F179: =F169+F175 -> 0 | G179: =G169+G175 -> 0 | H179: 0 | I179: 0 | J179: 0 | K179: 0 | L179: 0 | M179: 0
D180: Net Fixed Assets (NFA) | E180: =AVERAGE(E178:E179) -> 0 | F180: =AVERAGE(F178:F179) -> 0 | G180: =AVERAGE(G178:G179) -> 0 | H180: 0 | I180: 0 | J180: 0 | K180: 0 | L180: 0 | M180: 0
B183: Net Fixed Assets - 1850
C185: Gross Book Value
D186: Opening Balance | F186: =E189 -> 0 | G186: =F189 -> 0 | H186: 0 | I186: 0 | J186: 0 | K186: 0 | L186: 0 | M186: 0
D187: Capital Additions during year (from ICM Costs)
D188: Retirements/Removals (if applicable)
D189: Closing Balance | E189: =E186+E187-E188 -> 0 | F189: =F186+F187-F188 -> 0 | G189: =G186+G187-G188 -> 0 | H189: 0 | I189: 0 | J189: 0 | K189: 0 | L189: 0 | M189: 0
C191: Accumulated Depreciation
D192: Opening Balance | F192: =E195 -> 0 | G192: =F195 -> 0 | H192: 0 | I192: 0 | J192: 0 | K192: 0 | L192: 0 | M192: 0
D193: Amortization expense during year | E193: =-E187/'1. Cost of Service_parameters'!G65/2 -> 0 | F193: =-F186/'1. Cost of Service_parameters'!G65-'2.MIST Meters Assets_Rate Base'!F187/'1. Cost of Service_parameters'!G65/2 -> 0 | G193: =-G186/'1. Cost of Service_parameters'!H65-'2.MIST Meters Assets_Rate Base'!G187/'1. Cost of Service_parameters'!H65/2 -> 0 | H193: =-H186/'1. Cost of Service_parameters'!I65-'2.MIST Meters Assets_Rate Base'!H187/'1. Cost of Service_parameters'!I65/2 -> 0 | I193: =-I186/'1. Cost of Service_parameters'!J65-'2.MIST Meters Assets_Rate Base'!I187/'1. Cost of Service_parameters'!J65/2 -> 0 | J193: =-J186/'1. Cost of Service_parameters'!K65-'2.MIST Meters Assets_Rate Base'!J187/'1. Cost of Service_parameters'!K65/2 -> 0 | K193: =-K186/'1. Cost of Service_parameters'!L65-'2.MIST Meters Assets_Rate Base'!K187/'1. Cost of Service_parameters'!L65/2 -> 0 | L193: =-L186/'1. Cost of Service_parameters'!M65-'2.MIST Meters Assets_Rate Base'!L187/'1. Cost of Service_parameters'!M65/2 -> 0 | M193: =-M186/'1. Cost of Service_parameters'!N65-'2.MIST Meters Assets_Rate Base'!M187/'1. Cost of Service_parameters'!N65/2 -> 0
D194: Retirements/Removals (if applicable)
D195: Closing Balance | E195: =E192+E193-E194 -> 0 | F195: =F192+F193-F194 -> 0 | G195: =G192+G193-G194 -> 0 | H195: 0 | I195: 0 | J195: 0 | K195: 0 | L195: 0 | M195: 0
C197: Net Book Value
D198: Opening Balance | E198: =E186+E192 -> 0 | F198: =E199 -> 0 | G198: =F199 -> 0 | H198: 0 | I198: 0 | J198: 0 | K198: 0 | L198: 0 | M198: 0
D199: Closing Balance | E199: =E189+E195 -> 0 | F199: =F189+F195 -> 0 | G199: =G189+G195 -> 0 | H199: 0 | I199: 0 | J199: 0 | K199: 0 | L199: 0 | M199: 0
D200: Net Fixed Assets (NFA) | E200: =AVERAGE(E198:E199) -> 0 | F200: =AVERAGE(F198:F199) -> 0 | G200: =AVERAGE(G198:G199) -> 0 | H200: 0 | I200: 0 | J200: 0 | K200: 0 | L200: 0 | M200: 0
B203: Net Fixed Assets - 1982
C205: Gross Book Value
D206: Opening Balance | F206: =E209 -> 0 | G206: =F209 -> 0 | H206: 0 | I206: 0 | J206: 0 | K206: 0 | L206: 0 | M206: 0
D207: Capital Additions during year (from ICM Costs)
D208: Retirements/Removals (if applicable)
D209: Closing Balance | E209: =E206+E207-E208 -> 0 | F209: =F206+F207-F208 -> 0 | G209: =G206+G207-G208 -> 0 | H209: 0 | I209: 0 | J209: 0 | K209: 0 | L209: 0 | M209: 0
C211: Accumulated Depreciation
D212: Opening Balance | F212: =E215 -> 0 | G212: =F215 -> 0 | H212: 0 | I212: 0 | J212: 0 | K212: 0 | L212: 0 | M212: 0
D213: Amortization expense during year | E213: =-E207/'1. Cost of Service_parameters'!G68/2 -> 0 | F213: =-F206/'1. Cost of Service_parameters'!G68-'2.MIST Meters Assets_Rate Base'!F207/'1. Cost of Service_parameters'!G68/2 -> 0 | G213: =-G206/'1. Cost of Service_parameters'!H68-'2.MIST Meters Assets_Rate Base'!G207/'1. Cost of Service_parameters'!H68/2 -> 0 | H213: =-H206/'1. Cost of Service_parameters'!I68-'2.MIST Meters Assets_Rate Base'!H207/'1. Cost of Service_parameters'!I68/2 -> 0 | I213: =-I206/'1. Cost of Service_parameters'!J68-'2.MIST Meters Assets_Rate Base'!I207/'1. Cost of Service_parameters'!J68/2 -> 0 | J213: =-J206/'1. Cost of Service_parameters'!K68-'2.MIST Meters Assets_Rate Base'!J207/'1. Cost of Service_parameters'!K68/2 -> 0 | K213: =-K206/'1. Cost of Service_parameters'!L68-'2.MIST Meters Assets_Rate Base'!K207/'1. Cost of Service_parameters'!L68/2 -> 0 | L213: =-L206/'1. Cost of Service_parameters'!M68-'2.MIST Meters Assets_Rate Base'!L207/'1. Cost of Service_parameters'!M68/2 -> 0 | M213: =-M206/'1. Cost of Service_parameters'!N68-'2.MIST Meters Assets_Rate Base'!M207/'1. Cost of Service_parameters'!N68/2 -> 0
D214: Retirements/Removals (if applicable)
D215: Closing Balance | E215: =E212+E213-E214 -> 0 | F215: =F212+F213-F214 -> 0 | G215: =G212+G213-G214 -> 0 | H215: 0 | I215: 0 | J215: 0 | K215: 0 | L215: 0 | M215: 0
C217: Net Book Value
D218: Opening Balance | E218: =E206+E212 -> 0 | F218: =E219 -> 0 | G218: =F219 -> 0 | H218: 0 | I218: 0 | J218: 0 | K218: 0 | L218: 0 | M218: 0
D219: Closing Balance | E219: =E209+E215 -> 0 | F219: =F209+F215 -> 0 | G219: =G209+G215 -> 0 | H219: 0 | I219: 0 | J219: 0 | K219: 0 | L219: 0 | M219: 0
D220: Net Fixed Assets (NFA) | E220: =AVERAGE(E218:E219) -> 0 | F220: =AVERAGE(F218:F219) -> 0 | G220: =AVERAGE(G218:G219) -> 0 | H220: 0 | I220: 0 | J220: 0 | K220: 0 | L220: 0 | M220: 0
B223: Net Fixed Assets - 1955
C225: Gross Book Value
D226: Opening Balance | F226: =E229 -> 0 | G226: =F229 -> 0 | H226: 0 | I226: 0 | J226: 0 | K226: 0 | L226: 0 | M226: 0
D227: Capital Additions during year (from ICM Costs)
D228: Retirements/Removals (if applicable)
D229: Closing Balance | E229: =E226+E227-E228 -> 0 | F229: =F226+F227-F228 -> 0 | G229: =G226+G227-G228 -> 0 | H229: 0 | I229: 0 | J229: 0 | K229: 0 | L229: 0 | M229: 0
C231: Accumulated Depreciation
D232: Opening Balance | F232: =E235 -> 0 | G232: =F235 -> 0 | H232: 0 | I232: 0 | J232: 0 | K232: 0 | L232: 0 | M232: 0
D233: Amortization expense during year | E233: =-E227/'1. Cost of Service_parameters'!G71/2 -> 0 | F233: =-F226/'1. Cost of Service_parameters'!G71-'2.MIST Meters Assets_Rate Base'!F227/'1. Cost of Service_parameters'!G71/2 -> 0 | G233: =-G226/'1. Cost of Service_parameters'!H71-'2.MIST Meters Assets_Rate Base'!G227/'1. Cost of Service_parameters'!H71/2 -> 0 | H233: =-H226/'1. Cost of Service_parameters'!I71-'2.MIST Meters Assets_Rate Base'!H227/'1. Cost of Service_parameters'!I71/2 -> 0 | I233: =-I226/'1. Cost of Service_parameters'!J71-'2.MIST Meters Assets_Rate Base'!I227/'1. Cost of Service_parameters'!J71/2 -> 0 | J233: =-J226/'1. Cost of Service_parameters'!K71-'2.MIST Meters Assets_Rate Base'!J227/'1. Cost of Service_parameters'!K71/2 -> 0 | K233: =-K226/'1. Cost of Service_parameters'!L71-'2.MIST Meters Assets_Rate Base'!K227/'1. Cost of Service_parameters'!L71/2 -> 0 | L233: =-L226/'1. Cost of Service_parameters'!M71-'2.MIST Meters Assets_Rate Base'!L227/'1. Cost of Service_parameters'!M71/2 -> 0 | M233: =-M226/'1. Cost of Service_parameters'!N71-'2.MIST Meters Assets_Rate Base'!M227/'1. Cost of Service_parameters'!N71/2 -> 0
D234: Retirements/Removals (if applicable)
D235: Closing Balance | E235: =E232+E233-E234 -> 0 | F235: =F232+F233-F234 -> 0 | G235: =G232+G233-G234 -> 0 | H235: 0 | I235: 0 | J235: 0 | K235: 0 | L235: 0 | M235: 0
C237: Net Book Value
D238: Opening Balance | E238: =E226+E232 -> 0 | F238: =E239 -> 0 | G238: =F239 -> 0 | H238: 0 | I238: 0 | J238: 0 | K238: 0 | L238: 0 | M238: 0
D239: Closing Balance | E239: =E229+E235 -> 0 | F239: =F229+F235 -> 0 | G239: =G229+G235 -> 0 | H239: 0 | I239: 0 | J239: 0 | K239: 0 | L239: 0 | M239: 0
D240: Net Fixed Assets (NFA) | E240: =AVERAGE(E238:E239) -> 0 | F240: =AVERAGE(F238:F239) -> 0 | G240: =AVERAGE(G238:G239) -> 0 | H240: 0 | I240: 0 | J240: 0 | K240: 0 | L240: 0 | M240: 0
B243: Net Fixed Assets -
C245: Gross Book Value
D246: Opening Balance | F246: =E249 -> 0 | G246: =F249 -> 0 | H246: 0 | I246: 0 | J246: 0 | K246: 0 | L246: 0 | M246: 0
D247: Capital Additions during year (from ICM Costs)
D248: Retirements/Removals (if applicable)
D249: Closing Balance | E249: =E246+E247-E248 -> 0 | F249: =F246+F247-F248 -> 0 | G249: =G246+G247-G248 -> 0 | H249: 0 | I249: 0 | J249: 0 | K249: 0 | L249: 0 | M249: 0
C251: Accumulated Depreciation
D252: Opening Balance | F252: =E255 -> 0 | G252: =F255 -> 0 | H252: 0 | I252: 0 | J252: 0 | K252: 0 | L252: 0 | M252: 0
D253: Amortization expense during year | E253: 0 | F253: 0 | G253: 0 | H253: 0 | I253: 0 | J253: 0 | K253: 0 | L253: 0 | M253: 0
D254: Retirements/Removals (if applicable)
D255: Closing Balance | E255: =E252+E253-E254 -> 0 | F255: =F252+F253-F254 -> 0 | G255: =G252+G253-G254 -> 0 | H255: 0 | I255: 0 | J255: 0 | K255: 0 | L255: 0 | M255: 0
C257: Net Book Value
D258: Opening Balance | E258: =E246+E252 -> 0 | F258: =E259 -> 0 | G258: =F259 -> 0 | H258: 0 | I258: 0 | J258: 0 | K258: 0 | L258: 0 | M258: 0
D259: Closing Balance | E259: =E249+E255 -> 0 | F259: =F249+F255 -> 0 | G259: =G249+G255 -> 0 | H259: 0 | I259: 0 | J259: 0 | K259: 0 | L259: 0 | M259: 0
D260: Incremental CAPEX | E260: =E259 -> 0 | F260: =AVERAGE(F258:F259) -> 0 | G260: =AVERAGE(G258:G259) -> 0 | H260: 0 | I260: 0 | J260: 0 | K260: 0 | L260: 0 | M260: 0
D267: Additions | E267: =E15+E34+E53+E72+E91+E110+E129+E148+E167+E187+E207+E227+E247 -> 162581.58 | F267: =F15+F34+F53+F72+F91+F110+F129+F148+F167+F187+F207+F227+F247 -> 61030.73 | G267: 49085.57 | H267: 1318.29 | I267: 0 | J267: 106119.97 | K267: 0 | L267: 0 | M267: 0
D268: Net Fixed Assets (NFA) | E268: =E28+E47+E66+E85+E104+E123+E142+E161+E180+E200+E220+E240+E260 -> 78581.097 | F268: =F28+F47+F66+F85+F104+F123+F142+F161+F180+F200+F220+F240+F260 -> 182258.173 | G268: =G28+G47+G66+G85+G104+G123+G142+G161+G180+G200+G220+G240+G260 -> 224443.1933 | H268: 233101.4503 | I268: 215536.7937 | J268: 250329.034 | K268: 281583.942 | L268: 256241.5327 | M268: 230899.1233
... 1 more rows

Sheet 3. UCC_Calculations
B3: MIST Meteres True-up Model
A9: Sheet 3: CCA For PILs Calculation
A11: UCC/Class 47 | D11: 2018 | E11: 2019 | F11: 2020 | G11: 2021 | H11: 2022 | I11: 2023 | J11: 2024 | K11: 2025 | L11: 2026
D12: Actual | E12: Actual | F12: Actual | G12: Actual | H12: Actual | I12: Actual | J12: Actual | K12: Actual | L12: Actual
A14: Opening UCC | D14: 0 | E14: =D17-D22 -> 156078.3168 | F14: =E17-E22 -> 202181.5523 | G14: =F17-F22 -> 233129.1753 | H14: 215744.3997 | I14: 198484.8477 | J14: 284481.2311 | K14: 261722.7326 | L14: 240784.914
A15: Capital Additions | D15: ='2.MIST Meters Assets_Rate Base'!E267-D29-D44-D59-D74 -> 162581.58 | E15: ='2.MIST Meters Assets_Rate Base'!F267-E29-E44-E59-E74 -> 61030.73 | F15: ='2.MIST Meters Assets_Rate Base'!G267-F29-F44-F59-F74 -> 49085.57 | G15: ='2.MIST Meters Assets_Rate Base'!H267-G29-G44-G59-G74 -> 1318.29 | H15: ='2.MIST Meters Assets_Rate Base'!I267-H29-H44-H59-H74 -> 0 | I15: ='2.MIST Meters Assets_Rate Base'!J267-I29-I44-I59-I74 -> 106119.97 | J15: ='2.MIST Meters Assets_Rate Base'!K267-J29-J44-J59-J74 -> 0 | K15: ='2.MIST Meters Assets_Rate Base'!L267-K29-K44-K59-K74 -> 0 | L15: ='2.MIST Meters Assets_Rate Base'!M267-L29-L44-L59-L74 -> 0
A16: Retirements/Removals (if applicable) | D16: ='2.MIST Meters Assets_Rate Base'!E16 -> 0
A17: UCC Before Half Year Rule | D17: =SUM(D14:D15)-D16 -> 162581.58 | E17: =SUM(E14:E15)-E16 -> 217109.0468 | F17: =SUM(F14:F15)-F16 -> 251267.1223 | G17: 234447.4653 | H17: 215744.3997 | I17: 304604.8177 | J17: 284481.2311 | K17: 261722.7326 | L17: 240784.914
A18: Half Year Rule (1/2 Additions - Disposals) | D18: =IF(((D15-D16)/2)<0, 0, (D15-D16)/2) -> 81290.79 | E18: =IF(((E15-E16)/2)<0, 0, (E15-E16)/2) -> 30515.365 | F18: =IF(((F15-F16)/2)<0, 0, (F15-F16)/2) -> 24542.785 | G18: =IF(((G15-G16)/2)<0, 0, (G15-G16)/2) -> 659.145 | H18: 0 | I18: 53059.985 | J18: 0 | K18: 0 | L18: 0
A19: Reduced UCC | D19: =D18+D14 -> 81290.79 | E19: =E18+E14 -> 186593.6818 | F19: =F18+F14 -> 226724.3373 | G19: =G18+G14 -> 233788.3203 | H19: 215744.3997 | I19: 251544.8327 | J19: 284481.2311 | K19: 261722.7326 | L19: 240784.914
A20: CCA Rate Class | D20: 47 | E20: 47 | F20: 47 | G20: 47 | H20: 47 | I20: 47 | J20: 47 | K20: 47 | L20: 47
A21: CCA Rate | D21: 0.08 | E21: 0.08 | F21: 0.08 | G21: 0.08 | H21: 0.08 | I21: 0.08 | J21: 0.08 | K21: 0.08 | L21: 0.08
A22: CCA | D22: =D19*D21 -> 6503.2632 | E22: =E19*E21 -> 14927.49454 | F22: =F19*F21 -> 18137.94698 | G22: 18703.06562 | H22: 17259.55197 | I22: 20123.58661 | J22: 22758.49849 | K22: 20937.81861 | L22: 19262.79312
A23: Closing UCC | D23: =IF((D17-D22)<0, 0, D17-D22) -> 156078.3168 | E23: =IF((E17-E22)<0, 0, E17-E22) -> 202181.5523 | F23: =IF((F17-F22)<0, 0, F17-F22) -> 233129.1753 | G23: 215744.3997 | H23: 198484.8477 | I23: 284481.2311 | J23: 261722.7326 | K23: 240784.914 | L23: 221522.1209
A25: UCC/Class 8 | D25: =D11 -> 2018 | E25: 2019 | F25: =F11 -> 2020 | G25: 2021 | H25: 2022 | I25: 2023 | J25: 2024 | K25: 2025 | L25: 2026
D26: Actual | E26: Actual | F26: =F12 -> Actual | G26: Actual | H26: Actual | I26: Actual | J26: Actual | K26: Actual | L26: Actual
A28: Opening UCC | D28: 0 | E28: =D31-D36 -> 0 | F28: =E31-E36 -> 0 | G28: 0 | H28: 0 | I28: 0 | J28: 0 | K28: 0 | L28: 0
A29: Capital Additions | D29: ='2.MIST Meters Assets_Rate Base'!E227+'2.MIST Meters Assets_Rate Base'!E207+'2.MIST Meters Assets_Rate Base'!E148+'2.MIST Meters Assets_Rate Base'!E110 -> 0 | E29: ='2.MIST Meters Assets_Rate Base'!F227+'2.MIST Meters Assets_Rate Base'!F207+'2.MIST Meters Assets_Rate Base'!F148+'2.MIST Meters Assets_Rate Base'!F110 -> 0 | F29: ='2.MIST Meters Assets_Rate Base'!G227+'2.MIST Meters Assets_Rate Base'!G207+'2.MIST Meters Assets_Rate Base'!G148+'2.MIST Meters Assets_Rate Base'!G110 -> 0 | G29: ='2.MIST Meters Assets_Rate Base'!H227+'2.MIST Meters Assets_Rate Base'!H207+'2.MIST Meters Assets_Rate Base'!H148+'2.MIST Meters Assets_Rate Base'!H110 -> 0 | H29: ='2.MIST Meters Assets_Rate Base'!I227+'2.MIST Meters Assets_Rate Base'!I207+'2.MIST Meters Assets_Rate Base'!I148+'2.MIST Meters Assets_Rate Base'!I110 -> 0 | I29: ='2.MIST Meters Assets_Rate Base'!J227+'2.MIST Meters Assets_Rate Base'!J207+'2.MIST Meters Assets_Rate Base'!J148+'2.MIST Meters Assets_Rate Base'!J110 -> 0 | J29: ='2.MIST Meters Assets_Rate Base'!K227+'2.MIST Meters Assets_Rate Base'!K207+'2.MIST Meters Assets_Rate Base'!K148+'2.MIST Meters Assets_Rate Base'!K110 -> 0 | K29: ='2.MIST Meters Assets_Rate Base'!L227+'2.MIST Meters Assets_Rate Base'!L207+'2.MIST Meters Assets_Rate Base'!L148+'2.MIST Meters Assets_Rate Base'!L110 -> 0 | L29: ='2.MIST Meters Assets_Rate Base'!M227+'2.MIST Meters Assets_Rate Base'!M207+'2.MIST Meters Assets_Rate Base'!M148+'2.MIST Meters Assets_Rate Base'!M110 -> 0
A30: Retirements/Removals (if applicable)
A31: UCC Before Half Year Rule | D31: =SUM(D28:D29)-D30 -> 0 | E31: =SUM(E28:E29)-E30 -> 0 | F31: =SUM(F28:F29)-F30 -> 0 | G31: 0 | H31: 0 | I31: 0 | J31: 0 | K31: 0 | L31: 0
A32: Half Year Rule (1/2 Additions - Disposals) | D32: =IF((SUM(D29:D29)/2)<0, 0, SUM(D29:D29)/2) -> 0 | E32: =IF((SUM(E29:E29)/2)<0, 0, SUM(E29:E29)/2) -> 0 | F32: =IF((SUM(F29:F29)/2)<0, 0, SUM(F29:F29)/2) -> 0 | G32: 0 | H32: 0 | I32: 0 | J32: 0 | K32: 0 | L32: 0
A33: Reduced UCC | D33: =D32+D28 -> 0 | E33: =E32+E28 -> 0 | F33: =F32+F28 -> 0 | G33: 0 | H33: 0 | I33: 0 | J33: 0 | K33: 0 | L33: 0
A34: CCA Rate Class | D34: 8 | E34: 8 | F34: 8 | G34: 8 | H34: 8 | I34: 8 | J34: 8 | K34: 8 | L34: 8
A35: CCA Rate | D35: 0.2 | E35: 0.2 | F35: 0.2 | G35: 0.2 | H35: 0.2 | I35: 0.2 | J35: 0.2 | K35: 0.2 | L35: 0.2
A36: CCA | D36: =D35*D33 -> 0 | E36: =E35*E33 -> 0 | F36: =F35*F33 -> 0 | G36: 0 | H36: 0 | I36: 0 | J36: 0 | K36: 0 | L36: 0
A37: Closing UCC | D37: =IF((D31-D36)<0, 0, D31-D36) -> 0 | E37: =IF((E31-E36)<0, 0, E31-E36) -> 0 | F37: =IF((F31-F36)<0, 0, F31-F36) -> 0 | G37: 0 | H37: 0 | I37: 0 | J37: 0 | K37: 0 | L37: 0
A40: UCC/Class 10 | D40: 2014 | E40: 2015 | F40: 2016 | G40: 2017 | H40: 2018 | I40: 2019 | J40: 2020 | K40: 2021 | L40: 2022
D41: Audited Actual | E41: Forecast | F41: Forecast | G41: Forecast | H41: Forecast | I41: Forecast | J41: Forecast | K41: Forecast | L41: Forecast
A43: Opening UCC | D43: 0 | E43: =D46-D51 -> 0 | F43: =E46-E51 -> 0 | G43: 0 | H43: 0 | I43: 0 | J43: 0 | K43: 0 | L43: 0
A44: Capital Additions | D44: ='2.MIST Meters Assets_Rate Base'!E53 -> 0 | E44: ='2.MIST Meters Assets_Rate Base'!F53 -> 0 | F44: ='2.MIST Meters Assets_Rate Base'!G53 -> 0 | G44: ='2.MIST Meters Assets_Rate Base'!H53 -> 0 | H44: ='2.MIST Meters Assets_Rate Base'!I53 -> 0 | I44: ='2.MIST Meters Assets_Rate Base'!J53 -> 0 | J44: ='2.MIST Meters Assets_Rate Base'!K53 -> 0 | K44: ='2.MIST Meters Assets_Rate Base'!L53 -> 0 | L44: ='2.MIST Meters Assets_Rate Base'!M53 -> 0
A45: Retirements/Removals (if applicable)
A46: UCC Before Half Year Rule | D46: =SUM(D43:D44)-D45 -> 0 | E46: =SUM(E43:E44)-E45 -> 0 | F46: =SUM(F43:F44)-F45 -> 0 | G46: 0 | H46: 0 | I46: 0 | J46: 0 | K46: 0 | L46: 0
A47: Half Year Rule (1/2 Additions - Disposals) | D47: =IF((SUM(D44:D44)/2)<0, 0, SUM(D44:D44)/2) -> 0 | E47: =IF((SUM(E44:E44)/2)<0, 0, SUM(E44:E44)/2) -> 0 | F47: =IF((SUM(F44:F44)/2)<0, 0, SUM(F44:F44)/2) -> 0 | G47: 0 | H47: 0 | I47: 0 | J47: 0 | K47: 0 | L47: 0
A48: Reduced UCC | D48: =D47+D43 -> 0 | E48: =E47+E43 -> 0 | F48: =F47+F43 -> 0 | G48: 0 | H48: 0 | I48: 0 | J48: 0 | K48: 0 | L48: 0
A49: CCA Rate Class | D49: 10 | E49: 10 | F49: 10 | G49: 10 | H49: 10 | I49: 10 | J49: 10 | K49: 10 | L49: 10
A50: CCA Rate | D50: 0.3 | E50: 0.3 | F50: 0.3 | G50: 0.3 | H50: 0.3 | I50: 0.3 | J50: 0.3 | K50: 0.3 | L50: 0.3
A51: CCA | D51: =D50*D48 -> 0 | E51: =E50*E48 -> 0 | F51: =F50*F48 -> 0 | G51: 0 | H51: 0 | I51: 0 | J51: 0 | K51: 0 | L51: 0
A52: Closing UCC | D52: =IF((D46-D51)<0, 0, D46-D51) -> 0 | E52: =IF((E46-E51)<0, 0, E46-E51) -> 0 | F52: =IF((F46-F51)<0, 0, F46-F51) -> 0 | G52: 0 | H52: 0 | I52: 0 | J52: 0 | K52: 0 | L52: 0
A55: UCC/Class 50 | D55: 2014 | E55: 2015 | F55: 2016 | G55: 2017 | H55: 2018 | I55: 2019 | J55: 2020 | K55: 2021 | L55: 2022
D56: Audited Actual | E56: Forecast | F56: Forecast | G56: Forecast | H56: Forecast | I56: Forecast | J56: Forecast | K56: Forecast | L56: Forecast
A58: Opening UCC | D58: 0 | E58: =D61-D66 -> 0 | F58: =E61-E66 -> 0 | G58: 0 | H58: 0 | I58: 0 | J58: 0 | K58: 0 | L58: 0
A59: Capital Additions | D59: ='2.MIST Meters Assets_Rate Base'!E91+'2.MIST Meters Assets_Rate Base'!E167 -> 0 | E59: ='2.MIST Meters Assets_Rate Base'!F91+'2.MIST Meters Assets_Rate Base'!F167 -> 0 | F59: ='2.MIST Meters Assets_Rate Base'!G91+'2.MIST Meters Assets_Rate Base'!G167 -> 0 | G59: ='2.MIST Meters Assets_Rate Base'!H91+'2.MIST Meters Assets_Rate Base'!H167 -> 0 | H59: ='2.MIST Meters Assets_Rate Base'!I91+'2.MIST Meters Assets_Rate Base'!I167 -> 0 | I59: ='2.MIST Meters Assets_Rate Base'!J91+'2.MIST Meters Assets_Rate Base'!J167 -> 0 | J59: ='2.MIST Meters Assets_Rate Base'!K91+'2.MIST Meters Assets_Rate Base'!K167 -> 0 | K59: ='2.MIST Meters Assets_Rate Base'!L91+'2.MIST Meters Assets_Rate Base'!L167 -> 0 | L59: ='2.MIST Meters Assets_Rate Base'!M91+'2.MIST Meters Assets_Rate Base'!M167 -> 0
A60: Retirements/Removals (if applicable)
A61: UCC Before Half Year Rule | D61: =SUM(D58:D59)-D60 -> 0 | E61: =SUM(E58:E59)-E60 -> 0 | F61: =SUM(F58:F59)-F60 -> 0 | G61: 0 | H61: 0 | I61: 0 | J61: 0 | K61: 0 | L61: 0
A62: Half Year Rule (1/2 Additions - Disposals) | D62: =IF((SUM(D59:D59)/2)<0, 0, SUM(D59:D59)/2) -> 0 | E62: =IF((SUM(E59:E59)/2)<0, 0, SUM(E59:E59)/2) -> 0 | F62: =IF((SUM(F59:F59)/2)<0, 0, SUM(F59:F59)/2) -> 0 | G62: 0 | H62: 0 | I62: 0 | J62: 0 | K62: 0 | L62: 0
A63: Reduced UCC | D63: =D62+D58 -> 0 | E63: =E62+E58 -> 0 | F63: =F62+F58 -> 0 | G63: 0 | H63: 0 | I63: 0 | J63: 0 | K63: 0 | L63: 0
A64: CCA Rate Class | D64: 50 | E64: 50 | F64: 50 | G64: 50 | H64: 50 | I64: 50 | J64: 50 | K64: 50 | L64: 50
A65: CCA Rate | D65: 0.55 | E65: 0.55 | F65: 0.55 | G65: 0.55 | H65: 0.55 | I65: 0.55 | J65: 0.55 | K65: 0.55 | L65: 0.55
A66: CCA | D66: =D65*D63 -> 0 | E66: =E65*E63 -> 0 | F66: =F65*F63 -> 0 | G66: 0 | H66: 0 | I66: 0 | J66: 0 | K66: 0 | L66: 0
A67: Closing UCC | D67: =IF((D61-D66)<0, 0, D61-D66) -> 0 | E67: =IF((E61-E66)<0, 0, E61-E66) -> 0 | F67: =IF((F61-F66)<0, 0, F61-F66) -> 0 | G67: 0 | H67: 0 | I67: 0 | J67: 0 | K67: 0 | L67: 0
A70: UCC/Class 12 | D70: 2014 | E70: 2015 | F70: 2016 | G70: 2017 | H70: 2018 | I70: 2019 | J70: 2020 | K70: 2021 | L70: 2022
D71: Audited Actual | E71: Forecast | F71: Forecast | G71: Forecast | H71: Forecast | I71: Forecast | J71: Forecast | K71: Forecast | L71: Forecast
A73: Opening UCC | D73: 0 | E73: =D76-D81 -> 0 | F73: =E76-E81 -> 0 | G73: 0 | H73: 0 | I73: 0 | J73: 0 | K73: 0 | L73: 0
A74: Capital Additions | D74: ='2.MIST Meters Assets_Rate Base'!E129 -> 0 | E74: ='2.MIST Meters Assets_Rate Base'!F129 -> 0 | F74: ='2.MIST Meters Assets_Rate Base'!G129 -> 0 | G74: ='2.MIST Meters Assets_Rate Base'!H129 -> 0 | H74: ='2.MIST Meters Assets_Rate Base'!I129 -> 0 | I74: ='2.MIST Meters Assets_Rate Base'!J129 -> 0 | J74: ='2.MIST Meters Assets_Rate Base'!K129 -> 0 | K74: ='2.MIST Meters Assets_Rate Base'!L129 -> 0 | L74: ='2.MIST Meters Assets_Rate Base'!M129 -> 0
A75: Retirements/Removals (if applicable)
A76: UCC Before Half Year Rule | D76: =SUM(D73:D74)-D75 -> 0 | E76: =SUM(E73:E74)-E75 -> 0 | F76: =SUM(F73:F74)-F75 -> 0 | G76: 0 | H76: 0 | I76: 0 | J76: 0 | K76: 0 | L76: 0
A77: Half Year Rule (1/2 Additions - Disposals) | D77: =IF((SUM(D74:D74)/2)<0, 0, SUM(D74:D74)/2) -> 0 | E77: =IF((SUM(E74:E74)/2)<0, 0, SUM(E74:E74)/2) -> 0 | F77: =IF((SUM(F74:F74)/2)<0, 0, SUM(F74:F74)/2) -> 0 | G77: 0 | H77: 0 | I77: 0 | J77: 0 | K77: 0 | L77: 0
A78: Reduced UCC | D78: =D77+D73 -> 0 | E78: =E77+E73 -> 0 | F78: =F77+F73 -> 0 | G78: 0 | H78: 0 | I78: 0 | J78: 0 | K78: 0 | L78: 0
A79: CCA Rate Class | D79: 12 | E79: 12 | F79: 12 | G79: 12 | H79: 12 | I79: 12 | J79: 12 | K79: 12 | L79: 12
A80: CCA Rate | D80: 1 | E80: 1 | F80: 1 | G80: 1 | H80: 1 | I80: 1 | J80: 1 | K80: 1 | L80: 1
A81: CCA | D81: =D80*D78 -> 0 | E81: =E80*E78 -> 0 | F81: =F80*F78 -> 0 | G81: 0 | H81: 0 | I81: 0 | J81: 0 | K81: 0 | L81: 0
A82: Closing UCC | D82: =IF((D76-D81)<0, 0, D76-D81) -> 0 | E82: =IF((E76-E81)<0, 0, E76-E81) -> 0 | F82: =IF((F76-F81)<0, 0, F76-F81) -> 0 | G82: 0 | H82: 0 | I82: 0 | J82: 0 | K82: 0 | L82: 0
B86: Capital Additions | D86: =SUM(D74,D59,D44,D29,D15) -> 162581.58 | E86: =SUM(E74,E59,E44,E29,E15) -> 61030.73 | F86: =SUM(F74,F59,F44,F29,F15) -> 49085.57 | G86: 1318.29 | H86: 0 | I86: 106119.97 | J86: 0 | K86: 0 | L86: 0
B88: CCA | D88: =SUM(D81,D66,D51,D36,D22,) -> 6503.2632 | E88: =SUM(E81,E66,E51,E36,E22,) -> 14927.49454 | F88: =SUM(F81,F66,F51,F36,F22,) -> 18137.94698 | G88: 18703.06562 | H88: 17259.55197 | I88: 20123.58661 | J88: 22758.49849 | K88: 20937.81861 | L88: 19262.79312

Sheet 4. Fund Adder Revenues
H4: MIST Meters True-up Model
B9: Sheet 4: MIST Meters Funding Adder Revenues
B14: Prescribed Interest Rates | C14: Approved Deferral and Variance Accounts | D14: CWIP | F14: Date | G14: Year | H14: Quarter | J14: Opening Balance (Principal) | K14: Funding Adder Revenues | L14: Interest Rate | M14: Interest | N14: Principal & Interest (Cumm.)
B16: 2018 Q1 | C16: 0.015 | D16: 0.0299 | F16: 2018-01-01 | G16: =YEAR(F16) -> 2018 | H16: =IF(MONTH(F16)=0,"",IF(MONTH(F16)<4,"Q1",IF(MONTH(F16)<7,"Q2",IF(MONTH(F16)<10,"Q3","Q4")))) -> Q1 | I16: =CONCATENATE(G16," ",H16) -> 2018 Q1 | J16: 0 | L16: 0.015 | M16: =ROUND(J16*L16/12,2) -> 0 | N16: =K16+M16 -> 0
B17: 2018 Q2 | C17: 0.0189 | D17: 0.0335 | F17: 2018-02-01 | G17: =YEAR(F17) -> 2018 | H17: =IF(MONTH(F17)=0,"",IF(MONTH(F17)<4,"Q1",IF(MONTH(F17)<7,"Q2",IF(MONTH(F17)<10,"Q3","Q4")))) -> Q1 | I17: =CONCATENATE(G17," ",H17) -> 2018 Q1 | J17: =J16+K16 -> 0 | L17: 0.015 | M17: =ROUND(J17*L17/12,2) -> 0 | N17: =N16+K17+M17 -> 0
B18: 2018 Q3 | C18: 0.0189 | D18: 0.0335 | F18: 2018-03-01 | G18: 2018 | H18: Q1 | I18: 2018 Q1 | J18: =J17+K17 -> 0 | L18: 0.015 | M18: 0 | N18: =N17+K18+M18 -> 0
B19: 2018 Q4 | C19: 0.0217 | D19: 0.0335 | F19: 2018-04-01 | G19: 2018 | H19: Q2 | I19: 2018 Q2 | J19: 0 | L19: 0.0189 | M19: 0 | N19: 0
B20: 2019 Q1 | C20: 0.0245 | D20: 0.0382 | F20: 2018-05-01 | G20: 2018 | H20: Q2 | I20: 2018 Q2 | J20: 0 | L20: 0.0189 | M20: 0 | N20: 0
B21: 2019 Q2 | C21: 0.0218 | D21: 0.0339 | F21: 2018-06-01 | G21: 2018 | H21: Q2 | I21: 2018 Q2 | J21: 0 | L21: 0.0189 | M21: 0 | N21: 0
B22: 2019 Q3 | C22: 0.0218 | D22: 0.0288 | F22: 2018-07-01 | G22: 2018 | H22: Q3 | I22: 2018 Q3 | J22: 0 | L22: 0.0189 | M22: 0 | N22: 0
B23: 2019 Q4 | C23: 0.0218 | D23: 0.0288 | F23: 2018-08-01 | G23: 2018 | H23: Q3 | I23: 2018 Q3 | J23: 0 | L23: 0.0189 | M23: 0 | N23: 0
B24: 2020 Q1 | C24: 0.0218 | D24: 0.0288 | F24: 2018-09-01 | G24: 2018 | H24: Q3 | I24: 2018 Q3 | J24: 0 | L24: 0.0189 | M24: 0 | N24: 0
B25: 2020 Q2 | C25: 0.0218 | D25: 0.0248 | F25: 2018-10-01 | G25: 2018 | H25: Q4 | I25: 2018 Q4 | J25: 0 | L25: 0.0217 | M25: 0 | N25: 0
B26: 2020 Q3 | C26: 0.0057 | D26: 0.0248 | F26: 2018-11-01 | G26: 2018 | H26: Q4 | I26: 2018 Q4 | J26: 0 | L26: 0.0217 | M26: 0 | N26: 0
B27: 2020 Q4 | C27: 0.0057 | D27: 0.0203 | F27: 2018-12-01 | G27: 2018 | H27: Q4 | I27: 2018 Q4 | J27: 0 | L27: 0.0217 | M27: 0 | N27: 0
B28: 2021 Q1 | C28: 0.0057 | D28: 0.0203 | F28: 2019-01-01 | G28: 2019 | H28: Q1 | I28: 2019 Q1 | J28: 0 | L28: 0.0245 | M28: 0 | N28: 0
B29: 2021 Q2 | C29: 0.0057 | D29: 0.0229 | F29: 2019-02-01 | G29: 2019 | H29: Q1 | I29: 2019 Q1 | J29: 0 | L29: 0.0245 | M29: 0 | N29: 0
B30: 2021 Q3 | C30: 0.0057 | D30: 0.0229 | F30: 2019-03-01 | G30: 2019 | H30: Q1 | I30: 2019 Q1 | J30: 0 | L30: 0.0245 | M30: 0 | N30: 0
B31: 2021 Q4 | C31: 0.0057 | D31: 0.0229 | F31: 2019-04-01 | G31: 2019 | H31: Q2 | I31: 2019 Q2 | J31: 0 | L31: 0.0218 | M31: 0 | N31: 0
B32: 2022 Q1 | C32: 0.0057 | D32: 0.0272 | F32: 2019-05-01 | G32: 2019 | H32: Q2 | I32: 2019 Q2 | J32: 0 | L32: 0.0218 | M32: 0 | N32: 0
B33: 2022 Q2 | C33: 0.0102 | D33: 0.0331 | F33: 2019-06-01 | G33: 2019 | H33: Q2 | I33: 2019 Q2 | J33: 0 | L33: 0.0218 | M33: 0 | N33: 0
B34: 2022 Q3 | C34: 0.022 | D34: 0.0466 | F34: 2019-07-01 | G34: 2019 | H34: Q3 | I34: 2019 Q3 | J34: 0 | L34: 0.0218 | M34: 0 | N34: 0
B35: 2022 Q4 | C35: 0.0387 | D35: 0.0501 | F35: 2019-08-01 | G35: 2019 | H35: Q3 | I35: 2019 Q3 | J35: 0 | L35: 0.0218 | M35: 0 | N35: 0
B36: 2023 Q1 | C36: 0.0473 | D36: 0.0501 | F36: 2019-09-01 | G36: 2019 | H36: Q3 | I36: 2019 Q3 | J36: 0 | L36: 0.0218 | M36: 0 | N36: 0
B37: 2023 Q2 | C37: 0.0498 | D37: 0.0501 | F37: 2019-10-01 | G37: 2019 | H37: Q4 | I37: 2019 Q4 | J37: 0 | L37: 0.0218 | M37: 0 | N37: 0
B38: 2023 Q3 | C38: 0.0498 | D38: 0.0501 | F38: 2019-11-01 | G38: 2019 | H38: Q4 | I38: 2019 Q4 | J38: 0 | L38: 0.0218 | M38: 0 | N38: 0
B39: 2023 Q4 | C39: 0.0549 | D39: 0.0548 | F39: 2019-12-01 | G39: 2019 | H39: Q4 | I39: 2019 Q4 | J39: 0 | L39: 0.0218 | M39: 0 | N39: 0
B40: 2024 Q1 | C40: 0.0549 | D40: 0.0548 | F40: 2020-01-01 | G40: =YEAR(F40) -> 2020 | H40: =IF(MONTH(F40)=0,"",IF(MONTH(F40)<4,"Q1",IF(MONTH(F40)<7,"Q2",IF(MONTH(F40)<10,"Q3","Q4")))) -> Q1 | I40: =CONCATENATE(G40," ",H40) -> 2020 Q1 | J40: =J39+K39 -> 0 | L40: 0.0218 | M40: =ROUND(J40*L40/12,2) -> 0 | N40: =N39+K40+M40 -> 0
B41: 2024 Q2 | C41: 0.0549 | D41: 0.0598 | F41: 2020-02-01 | G41: 2020 | H41: Q1 | I41: 2020 Q1 | J41: 0 | L41: 0.0218 | M41: 0 | N41: 0
B42: 2024 Q3 | C42: 0.052 | D42: 0.0598 | F42: 2020-03-01 | G42: 2020 | H42: Q1 | I42: 2020 Q1 | J42: 0 | L42: 0.0218 | M42: 0 | N42: 0
B43: 2024 Q4 | C43: 0.044 | D43: 0.0455 | F43: 2020-04-01 | G43: 2020 | H43: Q2 | I43: 2020 Q2 | J43: 0 | L43: 0.0218 | M43: 0 | N43: 0
B44: 2025 Q1 | C44: 0.0364 | D44: 0.0423 | F44: 2020-05-01 | G44: 2020 | H44: Q2 | I44: 2020 Q2 | J44: 0 | L44: 0.0218 | M44: 0 | N44: 0
B45: 2025 Q2 | C45: 0.0316 | D45: 0.0423 | F45: 2020-06-01 | G45: 2020 | H45: Q2 | I45: 2020 Q2 | J45: 0 | L45: 0.0218 | M45: 0 | N45: 0
B46: 2025 Q3 | C46: 0.0291 | D46: 0.0423 | F46: 2020-07-01 | G46: 2020 | H46: Q3 | I46: 2020 Q3 | J46: 0 | L46: 0.0057 | M46: 0 | N46: 0
B47: 2025 Q4 | C47: 0.0291 | D47: 0.0423 | F47: 2020-08-01 | G47: 2020 | H47: Q3 | I47: 2020 Q3 | J47: 0 | L47: 0.0057 | M47: 0 | N47: 0
B48: 2026 Q1 | C48: 0.0255 | D48: 0.0423 | F48: 2020-09-01 | G48: 2020 | H48: Q3 | I48: 2020 Q3 | J48: 0 | L48: 0.0057 | M48: 0 | N48: 0
B49: 2026 Q2 | C49: 0.0255 | D49: 0.0423 | F49: 2020-10-01 | G49: 2020 | H49: Q4 | I49: 2020 Q4 | J49: 0 | L49: 0.0057 | M49: 0 | N49: 0
B50: 2026 Q3 | C50: 0.0255 | D50: 0.0423 | F50: 2020-11-01 | G50: 2020 | H50: Q4 | I50: 2020 Q4 | J50: 0 | L50: 0.0057 | M50: 0 | N50: 0
B51: 2026 Q4 | C51: 0.0255 | D51: 0.0423 | F51: 2020-12-01 | G51: 2020 | H51: Q4 | I51: 2020 Q4 | J51: 0 | L51: 0.0057 | M51: 0 | N51: 0
F52: 2021-01-01 | G52: 2021 | H52: Q1 | I52: 2021 Q1 | J52: 0 | L52: 0.0057 | M52: 0 | N52: 0
F53: 2021-02-01 | G53: 2021 | H53: Q1 | I53: 2021 Q1 | J53: 0 | L53: 0.0057 | M53: 0 | N53: 0
F54: 2021-03-01 | G54: 2021 | H54: Q1 | I54: 2021 Q1 | J54: 0 | L54: 0.0057 | M54: 0 | N54: 0
F55: 2021-04-01 | G55: 2021 | H55: Q2 | I55: 2021 Q2 | J55: 0 | L55: 0.0057 | M55: 0 | N55: 0
F56: 2021-05-01 | G56: 2021 | H56: Q2 | I56: 2021 Q2 | J56: 0 | L56: 0.0057 | M56: 0 | N56: 0
F57: 2021-06-01 | G57: 2021 | H57: Q2 | I57: 2021 Q2 | J57: 0 | L57: 0.0057 | M57: 0 | N57: 0
F58: 2021-07-01 | G58: 2021 | H58: Q3 | I58: 2021 Q3 | J58: 0 | L58: 0.0057 | M58: 0 | N58: 0
F59: 2021-08-01 | G59: 2021 | H59: Q3 | I59: 2021 Q3 | J59: 0 | L59: 0.0057 | M59: 0 | N59: 0
F60: 2021-09-01 | G60: 2021 | H60: Q3 | I60: 2021 Q3 | J60: 0 | L60: 0.0057 | M60: 0 | N60: 0
F61: 2021-10-01 | G61: 2021 | H61: Q4 | I61: 2021 Q4 | J61: 0 | L61: 0.0057 | M61: 0 | N61: 0
F62: 2021-11-01 | G62: 2021 | H62: Q4 | I62: 2021 Q4 | J62: 0 | L62: 0.0057 | M62: 0 | N62: 0
F63: 2021-12-01 | G63: 2021 | H63: Q4 | I63: 2021 Q4 | J63: 0 | L63: 0.0057 | M63: 0 | N63: 0
F64: 2022-01-01 | G64: 2022 | H64: Q1 | I64: 2022 Q1 | J64: 0 | L64: 0.0057 | M64: 0 | N64: 0
F65: 2022-02-01 | G65: 2022 | H65: Q1 | I65: 2022 Q1 | J65: 0 | L65: 0.0057 | M65: 0 | N65: 0
F66: 2022-03-01 | G66: 2022 | H66: Q1 | I66: 2022 Q1 | J66: 0 | L66: 0.0057 | M66: 0 | N66: 0
F67: 2022-04-01 | G67: 2022 | H67: Q2 | I67: 2022 Q2 | J67: 0 | L67: 0.0102 | M67: 0 | N67: 0
F68: 2022-05-01 | G68: 2022 | H68: Q2 | I68: 2022 Q2 | J68: 0 | L68: 0.0102 | M68: 0 | N68: 0
F69: 2022-06-01 | G69: 2022 | H69: Q2 | I69: 2022 Q2 | J69: 0 | L69: 0.0102 | M69: 0 | N69: 0
F70: 2022-07-01 | G70: 2022 | H70: Q3 | I70: 2022 Q3 | J70: 0 | L70: 0.022 | M70: 0 | N70: 0
F71: 2022-08-01 | G71: 2022 | H71: Q3 | I71: 2022 Q3 | J71: 0 | L71: 0.022 | M71: 0 | N71: 0
F72: 2022-09-01 | G72: 2022 | H72: Q3 | I72: 2022 Q3 | J72: 0 | L72: 0.022 | M72: 0 | N72: 0
F73: 2022-10-01 | G73: 2022 | H73: Q4 | I73: 2022 Q4 | J73: 0 | L73: 0.0387 | M73: 0 | N73: 0
F74: 2022-11-01 | G74: 2022 | H74: Q4 | I74: 2022 Q4 | J74: 0 | L74: 0.0387 | M74: 0 | N74: 0
F75: 2022-12-01 | G75: 2022 | H75: Q4 | I75: 2022 Q4 | J75: 0 | L75: 0.0387 | M75: 0 | N75: 0
F76: 2023-01-01 | G76: 2023 | H76: Q1 | I76: 2023 Q1 | J76: 0 | L76: 0.0473 | M76: 0 | N76: 0
F77: 2023-02-01 | G77: 2023 | H77: Q1 | I77: 2023 Q1 | J77: 0 | L77: 0.0473 | M77: 0 | N77: 0
F78: 2023-03-01 | G78: 2023 | H78: Q1 | I78: 2023 Q1 | J78: 0 | L78: 0.0473 | M78: 0 | N78: 0
F79: 2023-04-01 | G79: 2023 | H79: Q2 | I79: 2023 Q2 | J79: 0 | L79: 0.0498 | M79: 0 | N79: 0
F80: 2023-05-01 | G80: 2023 | H80: Q2 | I80: 2023 Q2 | J80: 0 | L80: 0.0498 | M80: 0 | N80: 0
F81: 2023-06-01 | G81: 2023 | H81: Q2 | I81: 2023 Q2 | J81: 0 | L81: 0.0498 | M81: 0 | N81: 0
F82: 2023-07-01 | G82: 2023 | H82: Q3 | I82: 2023 Q3 | J82: 0 | L82: 0.0498 | M82: 0 | N82: 0
F83: 2023-08-01 | G83: 2023 | H83: Q3 | I83: 2023 Q3 | J83: 0 | L83: 0.0498 | M83: 0 | N83: 0
F84: 2023-09-01 | G84: 2023 | H84: Q3 | I84: 2023 Q3 | J84: 0 | L84: 0.0498 | M84: 0 | N84: 0
F85: 2023-10-01 | G85: 2023 | H85: Q4 | I85: 2023 Q4 | J85: 0 | L85: 0.0549 | M85: 0 | N85: 0
F86: 2023-11-01 | G86: 2023 | H86: Q4 | I86: 2023 Q4 | J86: 0 | L86: 0.0549 | M86: 0 | N86: 0
F87: 2023-12-01 | G87: 2023 | H87: Q4 | I87: 2023 Q4 | J87: 0 | L87: 0.0549 | M87: 0 | N87: 0
F88: 2024-01-01 | G88: 2024 | H88: Q1 | I88: 2024 Q1 | J88: 0 | L88: 0.0549 | M88: 0 | N88: 0
F89: 2024-02-01 | G89: 2024 | H89: Q1 | I89: 2024 Q1 | J89: 0 | L89: 0.0549 | M89: 0 | N89: 0
F90: 2024-03-01 | G90: 2024 | H90: Q1 | I90: 2024 Q1 | J90: 0 | L90: 0.0549 | M90: 0 | N90: 0
F91: 2024-04-01 | G91: 2024 | H91: Q2 | I91: 2024 Q2 | J91: 0 | L91: 0.0549 | M91: 0 | N91: 0
F92: 2024-05-01 | G92: 2024 | H92: Q2 | I92: 2024 Q2 | J92: 0 | L92: 0.0549 | M92: 0 | N92: 0
F93: 2024-06-01 | G93: 2024 | H93: Q2 | I93: 2024 Q2 | J93: 0 | L93: 0.0549 | M93: 0 | N93: 0
F94: 2024-07-01 | G94: 2024 | H94: Q3 | I94: 2024 Q3 | J94: 0 | L94: 0.052 | M94: 0 | N94: 0
F95: 2024-08-01 | G95: 2024 | H95: Q3 | I95: 2024 Q3 | J95: 0 | L95: 0.052 | M95: 0 | N95: 0
F96: 2024-09-01 | G96: 2024 | H96: Q3 | I96: 2024 Q3 | J96: 0 | L96: 0.052 | M96: 0 | N96: 0
F97: 2024-10-01 | G97: 2024 | H97: Q4 | I97: 2024 Q4 | J97: 0 | L97: 0.044 | M97: 0 | N97: 0
F98: 2024-11-01 | G98: 2024 | H98: Q4 | I98: 2024 Q4 | J98: 0 | L98: 0.044 | M98: 0 | N98: 0
F99: 2024-12-01 | G99: 2024 | H99: Q4 | I99: 2024 Q4 | J99: 0 | L99: 0.044 | M99: 0 | N99: 0
F100: 2025-01-01 | G100: 2025 | H100: Q1 | I100: 2025 Q1 | J100: 0 | L100: 0.0364 | M100: 0 | N100: 0
F101: 2025-02-01 | G101: 2025 | H101: Q1 | I101: 2025 Q1 | J101: 0 | L101: 0.0364 | M101: 0 | N101: 0
F102: 2025-03-01 | G102: 2025 | H102: Q1 | I102: 2025 Q1 | J102: 0 | L102: 0.0364 | M102: 0 | N102: 0
F103: 2025-04-01 | G103: 2025 | H103: Q2 | I103: 2025 Q2 | J103: 0 | L103: 0.0316 | M103: 0 | N103: 0
F104: 2025-05-01 | G104: =YEAR(F104) -> 2025 | H104: =IF(MONTH(F104)=0,"",IF(MONTH(F104)<4,"Q1",IF(MONTH(F104)<7,"Q2",IF(MONTH(F104)<10,"Q3","Q4")))) -> Q2 | I104: =CONCATENATE(G104," ",H104) -> 2025 Q2 | J104: =J103+K103 -> 0 | L104: 0.0316 | M104: =ROUND(J104*L104/12,2) -> 0 | N104: =N103+K104+M104 -> 0
F105: 2025-06-01 | G105: 2025 | H105: Q2 | I105: 2025 Q2 | J105: 0 | L105: 0.0316 | M105: 0 | N105: 0
F106: 2025-07-01 | G106: 2025 | H106: Q3 | I106: 2025 Q3 | J106: 0 | L106: 0.0291 | M106: 0 | N106: 0
F107: 2025-08-01 | G107: 2025 | H107: Q3 | I107: 2025 Q3 | J107: 0 | L107: 0.0291 | M107: 0 | N107: 0
F108: 2025-09-01 | G108: 2025 | H108: Q3 | I108: 2025 Q3 | J108: 0 | L108: 0.0291 | M108: 0 | N108: 0
F109: 2025-10-01 | G109: 2025 | H109: Q4 | I109: 2025 Q4 | J109: 0 | L109: 0.0291 | M109: 0 | N109: 0
F110: 2025-11-01 | G110: 2025 | H110: Q4 | I110: 2025 Q4 | J110: 0 | L110: 0.0291 | M110: 0 | N110: 0
F111: 2025-12-01 | G111: 2025 | H111: Q4 | I111: 2025 Q4 | J111: 0 | L111: 0.0291 | M111: 0 | N111: 0
F112: 2026-01-01 | G112: 2026 | H112: Q1 | I112: 2026 Q1 | J112: 0 | L112: 0.0255 | M112: 0 | N112: 0
F113: 2026-02-01 | G113: 2026 | H113: Q1 | I113: 2026 Q1 | J113: 0 | L113: 0.0255 | M113: 0 | N113: 0
F114: 2026-03-01 | G114: 2026 | H114: Q1 | I114: 2026 Q1 | J114: 0 | L114: 0.0255 | M114: 0 | N114: 0
F115: 2026-04-01 | G115: 2026 | H115: Q2 | I115: 2026 Q2 | J115: 0 | L115: 0.0255 | M115: 0 | N115: 0
F116: 2026-05-01 | G116: 2026 | H116: Q2 | I116: 2026 Q2 | J116: 0 | L116: 0.0255 | M116: 0 | N116: 0
F117: 2026-06-01 | G117: 2026 | H117: Q2 | I117: 2026 Q2 | J117: 0 | L117: 0.0255 | M117: 0 | N117: 0
F118: 2026-07-01 | G118: 2026 | H118: Q3 | I118: 2026 Q3 | J118: 0 | L118: 0.0255 | M118: 0 | N118: 0
F119: 2026-08-01 | G119: 2026 | H119: Q3 | I119: 2026 Q3 | J119: 0 | L119: 0.0255 | M119: 0 | N119: 0
F120: 2026-09-01 | G120: 2026 | H120: Q3 | I120: 2026 Q3 | J120: 0 | L120: 0.0255 | M120: 0 | N120: 0
F121: 2026-10-01 | G121: 2026 | H121: Q4 | I121: 2026 Q4 | J121: 0 | L121: 0.0255 | M121: 0 | N121: 0
F122: 2026-11-01 | G122: 2026 | H122: Q4 | I122: 2026 Q4 | J122: 0 | L122: 0.0255 | M122: 0 | N122: 0
F123: 2026-12-01 | G123: 2026 | H123: Q4 | I123: 2026 Q4 | J123: 0 | L123: 0.0255 | M123: 0 | N123: 0
F125: Total Funding Adder Revenues Collected | K125: =SUM(K16:K39) -> 0 | M125: =SUM(M16:M39) -> 0 | N125: =K125+M125 -> 0
B127: NOTE: Funding adder revenues are up to December 2014 actuals

Sheet 5. MIST Meters_IRR
B4: MIST Meters True-up Model
B9: Sheet 5: Revenue Requirement Calculations
B14: Return on Rate Base | E14: 2018 | H14: 2019 | K14: 2020 | N14: 2021 | Q14: 2022 | T14: 2023 | W14: 2024 | Z14: 2025 | AC14: 2026
B15: Average Fixed Assets | E15: ='2.MIST Meters Assets_Rate Base'!E268-'2.MIST Meters Assets_Rate Base'!E269 -> 84000.483 | H15: ='2.MIST Meters Assets_Rate Base'!F268-'2.MIST Meters Assets_Rate Base'!F269 -> 193096.945 | K15: ='2.MIST Meters Assets_Rate Base'!G268-'2.MIST Meters Assets_Rate Base'!G269 -> 239350.6807 | N15: ='2.MIST Meters Assets_Rate Base'!H268-'2.MIST Meters Assets_Rate Base'!H269 -> 251281.309 | Q15: ='2.MIST Meters Assets_Rate Base'!I268-'2.MIST Meters Assets_Rate Base'!I269 -> 233804.5383 | T15: ='2.MIST Meters Assets_Rate Base'!J268-'2.MIST Meters Assets_Rate Base'!J269 -> 268596.7787 | W15: ='2.MIST Meters Assets_Rate Base'!K268-'2.MIST Meters Assets_Rate Base'!K269 -> 306926.3513 | Z15: ='2.MIST Meters Assets_Rate Base'!L268-'2.MIST Meters Assets_Rate Base'!L269 -> 281583.942 | AC15: ='2.MIST Meters Assets_Rate Base'!M268-'2.MIST Meters Assets_Rate Base'!M269 -> 256241.5327 | AD15: B
B16: Depreciation Expense | E16: =-'2.MIST Meters Assets_Rate Base'!E269 -> 5419.386 | H16: =-'2.MIST Meters Assets_Rate Base'!F269 -> 10838.772 | K16: =-'2.MIST Meters Assets_Rate Base'!G269 -> 14907.48733 | N16: =-'2.MIST Meters Assets_Rate Base'!H269 -> 18179.85867 | Q16: =-'2.MIST Meters Assets_Rate Base'!I269 -> 18267.74467 | T16: =-'2.MIST Meters Assets_Rate Base'!J269 -> 18267.74467 | W16: =-'2.MIST Meters Assets_Rate Base'!K269 -> 25342.40933 | Z16: =-'2.MIST Meters Assets_Rate Base'!L269 -> 25342.40933 | AC16: =-'2.MIST Meters Assets_Rate Base'!M269 -> 25342.40933 | AD16: C
B17: Net Fixed Assets to be included in Rate Base | E17: =E15-E16 -> 78581.097 | H17: =H15-H16 -> 182258.173 | K17: =K15-K16 -> 224443.1933 | N17: =N15-N16 -> 233101.4503 | Q17: =Q15-Q16 -> 215536.7937 | T17: =T15-T16 -> 250329.034 | W17: =W15-W16 -> 281583.942 | Z17: =Z15-Z16 -> 256241.5327 | AC17: =AC15-AC16 -> 230899.1233 | AD17: D = B - C
B19: Deemed ShortTerm Debt % | C19: ='1. Cost of Service_parameters'!G14 -> 0.04 | D19: E | E19: =E17*C19 -> 3143.24388 | F19: ='1. Cost of Service_parameters'!H14 -> 0.04 | H19: =H17*F19 -> 7290.32692 | I19: ='1. Cost of Service_parameters'!I14 -> 0.04 | K19: =K17*I19 -> 8977.727733 | L19: ='1. Cost of Service_parameters'!J14 -> 0.04 | N19: =N17*L19 -> 9324.058013 | O19: ='1. Cost of Service_parameters'!K14 -> 0.04 | Q19: =Q17*O19 -> 8621.471747 | R19: ='1. Cost of Service_parameters'!L14 -> 0.04 | T19: =T17*R19 -> 10013.16136 | U19: ='1. Cost of Service_parameters'!M14 -> 0.04 | W19: =W17*U19 -> 11263.35768 | X19: ='1. Cost of Service_parameters'!N14 -> 0.04 | Z19: =Z17*X19 -> 10249.66131 | AA19: ='1. Cost of Service_parameters'!O14 -> 0.04 | AC19: =AC17*AA19 -> 9235.964933 | AD19: G = D * E
B20: Deemed Long Term Debt % | C20: ='1. Cost of Service_parameters'!G15 -> 0.56 | D20: F | E20: =E17*C20 -> 44005.41432 | F20: ='1. Cost of Service_parameters'!H15 -> 0.56 | H20: =H17*F20 -> 102064.5769 | I20: ='1. Cost of Service_parameters'!I15 -> 0.56 | K20: =K17*I20 -> 125688.1883 | L20: ='1. Cost of Service_parameters'!J15 -> 0.56 | N20: =N17*L20 -> 130536.8122 | O20: ='1. Cost of Service_parameters'!K15 -> 0.56 | Q20: =Q17*O20 -> 120700.6045 | R20: ='1. Cost of Service_parameters'!L15 -> 0.56 | T20: =T17*R20 -> 140184.259 | U20: ='1. Cost of Service_parameters'!M15 -> 0.56 | W20: =W17*U20 -> 157687.0075 | X20: ='1. Cost of Service_parameters'!N15 -> 0.56 | Z20: =Z17*X20 -> 143495.2583 | AA20: ='1. Cost of Service_parameters'!O15 -> 0.56 | AC20: =AC17*AA20 -> 129303.5091 | AD20: H = D * F
B22: Short Term Interest | C22: ='1. Cost of Service_parameters'!G21 -> 0.0165 | D22: I | E22: =E19*C22 -> 51.86352402 | F22: ='1. Cost of Service_parameters'!H21 -> 0.0165 | H22: =H19*F22 -> 120.2903942 | I22: ='1. Cost of Service_parameters'!I21 -> 0.0165 | K22: =K19*I22 -> 148.1325076 | L22: ='1. Cost of Service_parameters'!J21 -> 0.0165 | N22: =N19*L22 -> 153.8469572 | O22: ='1. Cost of Service_parameters'!K21 -> 0.0165 | Q22: =Q19*O22 -> 142.2542838 | R22: ='1. Cost of Service_parameters'!L21 -> 0.0165 | T22: =T19*R22 -> 165.2171624 | U22: ='1. Cost of Service_parameters'!M21 -> 0.0165 | W22: =W19*U22 -> 185.8454017 | X22: ='1. Cost of Service_parameters'!N21 -> 0.0165 | Z22: =Z19*X22 -> 169.1194116 | AA22: ='1. Cost of Service_parameters'!O21 -> 0.0165 | AC22: =AC19*AA22 -> 152.3934214 | AD22: K = G * I
B23: Long Term Interest | C23: ='1. Cost of Service_parameters'!G22 -> 0.04914816867 | D23: J | E23: =E20*C23 -> 2162.785525 | F23: ='1. Cost of Service_parameters'!H22 -> 0.04914816867 | H23: =H20*F23 -> 5016.28704 | I23: ='1. Cost of Service_parameters'!I22 -> 0.04914816867 | K23: =K20*I23 -> 6177.344277 | L23: ='1. Cost of Service_parameters'!J22 -> 0.04914816867 | N23: =N20*L23 -> 6415.645263 | O23: ='1. Cost of Service_parameters'!K22 -> 0.04914816867 | Q23: =Q20*O23 -> 5932.213666 | R23: ='1. Cost of Service_parameters'!L22 -> 0.04914816867 | T23: =T20*R23 -> 6889.799608 | U23: ='1. Cost of Service_parameters'!M22 -> 0.04914816867 | W23: =W20*U23 -> 7750.027643 | X23: ='1. Cost of Service_parameters'!N22 -> 0.04914816867 | Z23: =Z20*X23 -> 7052.529158 | AA23: ='1. Cost of Service_parameters'!O22 -> 0.04914816867 | AC23: =AC20*AA23 -> 6355.030673 | AD23: L = H * J
B25: Return on Rate Base - Interest | E25: =SUM(E22:E23) -> 2214.649049 | H25: =SUM(H22:H23) -> 5136.577434 | K25: =SUM(K22:K23) -> 6325.476784 | N25: =SUM(N22:N23) -> 6569.49222 | Q25: =SUM(Q22:Q23) -> 6074.46795 | T25: =SUM(T22:T23) -> 7055.016771 | W25: =SUM(W22:W23) -> 7935.873044 | Z25: =SUM(Z22:Z23) -> 7221.64857 | AC25: =SUM(AC22:AC23) -> 6507.424095 | AD25: M = K + L
AJ27: aaa
B28: Deemed Equity % | C28: ='1. Cost of Service_parameters'!G16 -> 0.4 | D28: N | E28: =E17*C28 -> 31432.4388 | F28: ='1. Cost of Service_parameters'!H16 -> 0.4 | H28: =H17*F28 -> 72903.2692 | I28: ='1. Cost of Service_parameters'!I16 -> 0.4 | K28: =K17*I28 -> 89777.27733 | L28: ='1. Cost of Service_parameters'!J16 -> 0.4 | N28: =N17*L28 -> 93240.58013 | O28: ='1. Cost of Service_parameters'!K16 -> 0.4 | Q28: =Q17*O28 -> 86214.71747 | R28: ='1. Cost of Service_parameters'!L16 -> 0.4 | T28: =T17*R28 -> 100131.6136 | U28: ='1. Cost of Service_parameters'!M16 -> 0.4 | W28: =W17*U28 -> 112633.5768 | X28: ='1. Cost of Service_parameters'!N16 -> 0.4 | Z28: =Z17*X28 -> 102496.6131 | AA28: ='1. Cost of Service_parameters'!O16 -> 0.4 | AC28: =AC17*AA28 -> 92359.64933 | AD28: P = D * N
B30: Return on Rate Base -Equity | C30: ='1. Cost of Service_parameters'!G23 -> 0.0919 | D30: O | E30: =E28*C30 -> 2888.641126 | F30: ='1. Cost of Service_parameters'!H23 -> 0.0919 | H30: =H28*F30 -> 6699.810439 | I30: ='1. Cost of Service_parameters'!I23 -> 0.0919 | K30: =K28*I30 -> 8250.531787 | L30: ='1. Cost of Service_parameters'!J23 -> 0.0919 | N30: =N28*L30 -> 8568.809314 | O30: ='1. Cost of Service_parameters'!K23 -> 0.0919 | Q30: =Q28*O30 -> 7923.132535 | R30: ='1. Cost of Service_parameters'!L23 -> 0.0919 | T30: =T28*R30 -> 9202.09529 | U30: ='1. Cost of Service_parameters'!M23 -> 0.0919 | W30: =W28*U30 -> 10351.02571 | X30: ='1. Cost of Service_parameters'!N23 -> 0.0919 | Z30: =Z28*X30 -> 9419.438741 | AA30: ='1. Cost of Service_parameters'!O23 -> 0.0919 | AC30: =AC28*AA30 -> 8487.851774 | AD30: Q = P * O
B32: Return on Rate Base - Total | E32: =E25+E30 -> 5103.290175 | H32: =H25+H30 -> 11836.38787 | K32: =K25+K30 -> 14576.00857 | N32: =N25+N30 -> 15138.30153 | Q32: =Q25+Q30 -> 13997.60049 | T32: =T25+T30 -> 16257.11206 | W32: =W25+W30 -> 18286.89875 | Z32: =Z25+Z30 -> 16641.08731 | AC32: =AC25+AC30 -> 14995.27587 | AD32: R = M + Q
B36: Amortization Expense
B38: Amortization Expense - Incremental | D38: C | E38: =E16 -> 5419.386 | H38: =H16 -> 10838.772 | K38: =K16 -> 14907.48733 | N38: =N16 -> 18179.85867 | Q38: =Q16 -> 18267.74467 | T38: =T16 -> 18267.74467 | W38: =W16 -> 25342.40933 | Z38: =Z16 -> 25342.40933 | AC38: =AC16 -> 25342.40933 | AD38: S
B41: Grossed up PIL's
B43: Regulatory Taxable Income | D43: O | E43: =E30 -> 2888.641126 | H43: =H30 -> 6699.810439 | K43: =K30 -> 8250.531787 | N43: =N30 -> 8568.809314 | Q43: =Q30 -> 7923.132535 | T43: =T30 -> 9202.09529 | W43: =W30 -> 10351.02571 | Z43: =Z30 -> 9419.438741 | AC43: =AC30 -> 8487.851774 | AD43: T
B45: Add Back Amortization Expense | D45: S | E45: =E38 -> 5419.386 | H45: =H38 -> 10838.772 | K45: =K38 -> 14907.48733 | N45: =N38 -> 18179.85867 | Q45: =Q38 -> 18267.74467 | T45: =T38 -> 18267.74467 | W45: =W38 -> 25342.40933 | Z45: =Z38 -> 25342.40933 | AC45: =AC38 -> 25342.40933 | AD45: U
B47: Deduct CCA | E47: ='3. UCC_Calculations'!D88 -> 6503.2632 | H47: ='3. UCC_Calculations'!E88 -> 14927.49454 | K47: ='3. UCC_Calculations'!H88 -> 17259.55197 | N47: ='3. UCC_Calculations'!K88 -> 20937.81861 | Q47: ='3. UCC_Calculations'!N88 -> 0 | T47: ='3. UCC_Calculations'!Q88 -> 0 | W47: ='3. UCC_Calculations'!T88 -> 0 | Z47: ='3. UCC_Calculations'!W88 -> 0 | AC47: ='3. UCC_Calculations'!Z88 -> 0 | AD47: V
B49: Incremental Taxable Income | E49: =E43+E45-E47 -> 1804.763926 | H49: =H43+H45-H47 -> 2611.087895 | K49: =K43+K45-K47 -> 5898.467148 | N49: =N43+N45-N47 -> 5810.849374 | Q49: =Q43+Q45-Q47 -> 26190.8772 | T49: =T43+T45-T47 -> 27469.83996 | W49: =W43+W45-W47 -> 35693.43504 | Z49: =Z43+Z45-Z47 -> 34761.84807 | AC49: =AC43+AC45-AC47 -> 33830.26111 | AD49: W = T + U - V
B51: Current Tax Rate (F1.1 Z-Factor Tax Changes) | C51: 0.265 | D51: X | F51: 0.265 | I51: 0.265 | L51: 0.265 | O51: 0.265 | R51: 0.265 | U51: 0.265 | X51: 0.265 | AA51: 0.265
B53: PIL's Before Gross Up | E53: =E49*C51 -> 478.2624403 | H53: =H49*F51 -> 691.9382923 | K53: =K49*I51 -> 1563.093794 | N53: =N49*L51 -> 1539.875084 | Q53: =Q49*O51 -> 6940.582458 | T53: =T49*R51 -> 7279.507588 | W53: =W49*U51 -> 9458.760286 | Z53: =Z49*X51 -> 9211.88974 | AC53: =AC49*AA51 -> 8965.019193 | AD53: Y = W * X
B55: Incremental Grossed Up PIL's | E55: =E53/(1-C51) -> 650.6971977 | H55: =H53/(1-F51) -> 941.4126426 | K55: =K53/(1-I51) -> 2126.658223 | N55: =N53/(1-L51) -> 2095.068142 | Q55: =Q53/(1-O51) -> 9442.969331 | T55: =T53/(1-R51) -> 9904.091957 | W55: =W53/(1-U51) -> 12869.06161 | Z55: =Z53/(1-X51) -> 12533.18332 | AC55: =AC53/(1-AA51) -> 12197.30502 | AD55: Z = Y / ( 1 - X )
B58: Incremental Revenue Requirement
B59: Return on Rate Base - Total | D59: Q | E59: =E32 -> 5103.290175 | H59: =H32 -> 11836.38787 | K59: =K32 -> 14576.00857 | N59: =N32 -> 15138.30153 | Q59: =Q32 -> 13997.60049 | T59: =T32 -> 16257.11206 | W59: =W32 -> 18286.89875 | Z59: =Z32 -> 16641.08731 | AC59: =AC32 -> 14995.27587 | AD59: AF
B60: Amortization Expense - Total | D60: S | E60: =E38 -> 5419.386 | H60: =H38 -> 10838.772 | K60: =K38 -> 14907.48733 | N60: =N38 -> 18179.85867 | Q60: =Q38 -> 18267.74467 | T60: =T38 -> 18267.74467 | W60: =W38 -> 25342.40933 | Z60: =Z38 -> 25342.40933 | AC60: =AC38 -> 25342.40933 | AD60: AG
B61: Incremental Grossed Up PIL's | D61: Z | E61: =E55 -> 650.6971977 | H61: =H55 -> 941.4126426 | K61: =K55 -> 2126.658223 | N61: =N55 -> 2095.068142 | Q61: =Q55 -> 9442.969331 | T61: =T55 -> 9904.091957 | W61: =W55 -> 12869.06161 | Z61: =Z55 -> 12533.18332 | AC61: =AC55 -> 12197.30502 | AD61: AH
B63: Incremental Revenue Requirement | E63: =SUM(E59:E61) -> 11173.37337 | H63: =SUM(H59:H61) -> 23616.57252 | K63: =SUM(K59:K61) -> 31610.15413 | N63: =SUM(N59:N61) -> 35413.22834 | Q63: =SUM(Q59:Q61) -> 41708.31448 | T63: =SUM(T59:T61) -> 44428.94868 | W63: =SUM(W59:W61) -> 56498.3697 | Z63: =SUM(Z59:Z61) -> 54516.67996 | AC63: =SUM(AC59:AC61) -> 52534.99023 | AD63: AJ = AF + AG + AH + AI

Sheet 6. True-up Summary
D4: MIST Meters True-up Model
B9: Sheet 6: MIST Meters Incremental Revenue Requirement
E12: 2018 | G12: 2019 | I12: 2020 | K12: 2021 | M12: 2022 | O12: 2023 | Q12: 2024 | S12: 2025 | U12: 2026 | W12: Total
C14: Deferred and forecasted MIST Meters Revenue Requirement (from Sheet 5) | E14: ='5. MIST Meters_IRR'!E63 -> 11173.37337 | G14: ='5. MIST Meters_IRR'!H63 -> 23616.57252 | I14: ='5. MIST Meters_IRR'!K63 -> 31610.15413 | K14: ='5. MIST Meters_IRR'!N63 -> 35413.22834 | M14: ='5. MIST Meters_IRR'!Q63 -> 41708.31448 | O14: ='5. MIST Meters_IRR'!T63 -> 44428.94868 | Q14: ='5. MIST Meters_IRR'!W63 -> 56498.3697 | S14: ='5. MIST Meters_IRR'!Z63 -> 54516.67996 | U14: ='5. MIST Meters_IRR'!AC63 -> 52534.99023 | W14: =SUM(E14:U14) -> 351500.6314
C17: MIST Meters Funding Adder Revenues (from Sheet 4) | E17: 0 | G17: 0 | I17: 0 | K17: 0 | M17: 0 | O17: 0 | Q17: 0 | S17: 0 | U17: 0 | W17: =SUM(E17:G17) -> 0
C19: MIST Meters Funding Adder Interest (from Sheet 4) | E19: =SUM('4. Fund Adder Revenues'!M19:M27) -> 0 | G19: =SUM('4. Fund Adder Revenues'!M28:M39) -> 0 | I19: =SUM('4. Fund Adder Revenues'!O28:O39) -> 0 | K19: =SUM('4. Fund Adder Revenues'!Q28:Q39) -> 0 | M19: =SUM('4. Fund Adder Revenues'!S28:S39) -> 0 | O19: =SUM('4. Fund Adder Revenues'!U28:U39) -> 0 | Q19: =SUM('4. Fund Adder Revenues'!W28:W39) -> 0 | S19: =SUM('4. Fund Adder Revenues'!Y28:Y39) -> 0 | U19: =SUM('4. Fund Adder Revenues'!AA28:AA39) -> 0 | W19: =SUM(E19:G19) -> 0
C21: Net Deferred Revenue Requirement | E21: =E14-E17-E19 -> 11173.37337 | G21: =G14-G17-G19 -> 23616.57252 | I21: =I14-I17-I19 -> 31610.15413 | K21: =K14-K17-K19 -> 35413.22834 | M21: =M14-M17-M19 -> 41708.31448 | O21: =O14-O17-O19 -> 44428.94868 | Q21: =Q14-Q17-Q19 -> 56498.3697 | S21: =S14-S17-S19 -> 54516.67996 | U21: =U14-U17-U19 -> 52534.99023 | W21: =SUM(E21:U21) -> 351500.6314
